Workbook

Sheet 入力データ1
A1: 1 | B1: =A1+1 -> 2 | C1: =B1+1 -> 3 | D1: 4 | E1: =D1+1 -> 5 | F1: =E1+1 -> 6 | G1: =F1+1 -> 7 | H1: =G1+1 -> 8
B3: ケース 番号 | C3: 曲げモーメント M(kNm) | D3: 軸力 N(kN) | E3: 断面形状 | F3: 断面諸元番号 ipr(i) | G3: 計算種類 ical(i) | H3: 説明欄 | I3: 中立軸 探索範囲 kk1 | J3: 中立軸 探索範囲 kk2 | K3: 軸力作用位置 iflag1 | L3: 中立軸 チェック用 iflag2
B4: 1 | C4: 70 | D4: 70 | E4: T形 | F4: 1 | G4: 0 | H4: ①
B5: 2 | C5: 70 | D5: 150 | E5: T形 | F5: 1 | G5: 0 | H5: ②
B6: 3 | C6: 70 | D6: 300 | E6: T形 | F6: 1 | G6: 0 | H6: ③
B7: 4 | C7: 70 | D7: 400 | E7: T形 | F7: 1 | G7: 0 | H7: ④
B8: 5 | C8: 70 | D8: 500 | E8: T形 | F8: 1 | G8: 0 | H8: ⑤
B9: 6 | C9: -70 | D9: 150 | E9: T形 | F9: 1 | G9: 0 | H9: ⑥負曲げ
B10: 7 | C10: 70 | D10: 1000 | E10: T形 | F10: 1 | G10: 0 | H10: ⑦全断面圧縮
B11: 8 | C11: 30 | D11: -400 | E11: T形 | F11: 1 | G11: 0 | H11: ⑧全断面引張

Sheet 入力データ2(矩形) (hidden)
A1: 1 | B1: =A1+1 -> 2 | C1: =B1+1 -> 3 | D1: 4 | E1: 5 | F1: =E1+1 -> 6 | G1: =F1+1 -> 7 | H1: =G1+1 -> 8 | I1: =H1+1 -> 9 | J1: =I1+1 -> 10 | K1: =J1+1 -> 11 | L1: =K1+1 -> 12 | M1: =L1+1 -> 13 | N1: =M1+1 -> 14
B2: 矩形断面 | I2: 第1段 | K2: 第2段 | M2: 第3段
B3: 通し番号 | C3: 断面諸元番号 | D3: 全高 h_inp(i) (cm) | E3: 断面幅 b_inp(i) (cm) | F3: コン許容 σca(N/mm2) | G3: 鉄筋許容 σsa(N/mm2) | H3: 鉄筋段数 ndan_inp(i) | I3: 被り cv_inp(i,1) (cm) | J3: 鉄筋量 ast_inp(i,1) (cm2) | K3: 被り cv_inp(i,2) (cm) | L3: 鉄筋量 ast_inp(i,2) (cm2) | M3: 被り cv_inp(i,3) (cm) | N3: 鉄筋量 ast_inp(i,3) (cm2)
B4: 1 | C4: 1 | D4: 40 | E4: 100 | F4: 8 | G4: 160 | H4: 2 | I4: 12 | J4: =4*2.865 -> 11.46 | K4: 28 | L4: =4*2.865 -> 11.46 | O4: 常時 4-D19 | P4: ctc250mm
B5: 2 | C5: 2 | D5: 40 | E5: 100 | F5: =F4*1.5 -> 12 | G5: =G4*1.5 -> 240 | H5: 2 | I5: 12 | J5: 11.46 | K5: 28 | L5: =4*2.865 -> 11.46 | O5: 地震時 4-D19 | P5: ctc250mm

Sheet 入力データ2(円形) (hidden)
A1: 1 | B1: =A1+1 -> 2 | C1: =B1+1 -> 3 | D1: 4 | E1: =D1+1 -> 5 | F1: =E1+1 -> 6 | G1: =F1+1 -> 7 | H1: =G1+1 -> 8 | I1: =H1+1 -> 9 | J1: =I1+1 -> 10 | K1: =J1+1 -> 11 | L1: =K1+1 -> 12 | M1: =L1+1 -> 13
B2: 円形断面 | H2: 第1段 | J2: 第2段 | L2: 第3段
B3: 通し番号 | C3: 断面諸元番号 | D3: 半径 rc_inp(i) (cm) | E3: コン許容 σca(N/mm2) | F3: 鉄筋許容 σsa(N/mm2) | G3: 鉄筋段数 ndan_inp(i) | H3: 半径 rs_inp(i,1) (cm) | I3: 鉄筋量 ast_inp(i,1) (cm2) | J3: 被り rs_inp(i,2) (cm) | K3: 鉄筋量 ast_inp(i,2) (cm2) | L3: 被り rs_inp(i,3) (cm) | M3: 鉄筋量 ast_inp(i,3) (cm2)
B4: 1 | C4: 1 | D4: 100 | E4: 8 | F4: 180 | G4: 1 | H4: 85 | I4: 154.84

Sheet 入力データ2(T形)
A1: 1 | B1: =A1+1 -> 2 | C1: =B1+1 -> 3 | D1: 4 | E1: 5 | F1: =E1+1 -> 6 | G1: =F1+1 -> 7 | H1: =G1+1 -> 8 | I1: =H1+1 -> 9 | J1: =I1+1 -> 10 | K1: =J1+1 -> 11 | L1: =K1+1 -> 12 | M1: =L1+1 -> 13 | N1: =M1+1 -> 14 | O1: =N1+1 -> 15 | P1: =O1+1 -> 16
B2: T形断面 | K2: 第1段 | M2: 第2段 | O2: 第3段
B3: 通し番号 | C3: 断面諸元番号 | D3: 全高 h_inp(i) (cm) | E3: フランジ幅 b_inp(i) (cm) | F3: フランジ厚 t_inp(i) (cm) | G3: ウェブ幅 bw_inp(i) (cm) | H3: コン許容 σca(N/mm2) | I3: 鉄筋許容 σsa(N/mm2) | J3: 鉄筋段数 ndan_inp(i) | K3: 被り cv_inp(i,1) (cm) | L3: 鉄筋量 ast_inp(i,1) (cm2) | M3: 被り cv_inp(i,2) (cm) | N3: 鉄筋量 ast_inp(i,2) (cm2) | O3: 被り cv_inp(i,3) (cm) | P3: 鉄筋量 ast_inp(i,3) (cm2)
B4: 1 | C4: 1 | D4: 40 | E4: 100 | F4: 15 | G4: 50 | H4: 8 | I4: 180 | J4: 2 | K4: 8 | L4: 9.95 | M4: 32 | N4: 16.3

Sheet 応力度
B2: ケース番号 | C2: 説明欄 | D2: 断面形状 | E2: 計算種類 | F2: 断面諸元番号 | G2: mf(kNm) | H2: nf(kN) | I2: x(cm) | J2: σc(N/mm2) | K2: σs(N/mm2) | L2: σs'(N/mm2) | M2: σca(N/mm2) | N2: σsa(N/mm2) | O2: 照査値σc/σca | P2: 照査値σs/σsa | Q2: 判定(σc) | R2: 判定(σs) | S2: 最外引張鉄筋量(cm2) | T2: 最外圧縮鉄筋量(cm2) | U2: 繰り返し数it | V2: σc1(N/mm2)
B3: 1 | C3: ① | D3: T形 | E3: 0 | F3: 1 | G3: 70 | H3: 70 | I3: 11.2174654 | J3: 4.645057955 | K3: 129.0880884 | L3: -19.9848799 | M3: 8 | N3: 180 | O3: 0.5806322443 | P3: 0.7171560465 | Q3: OK | R3: OK | U3: 1
B4: 2 | C4: ② | D4: T形 | E4: 0 | F4: 1 | G4: 70 | H4: 150 | I4: 12.75404263 | J4: 4.624125878 | K4: 104.6676714 | L4: -25.85449826 | M4: 8 | N4: 180 | O4: 0.5780157347 | P4: 0.5814870636 | Q4: OK | R4: OK | U4: 1
B5: 3 | C5: ③ | D5: T形 | E5: 0 | F5: 1 | G5: 70 | H5: 300 | I5: 16.51220131 | J5: 4.479230871 | K5: 63.0201492 | L5: -34.63630999 | M5: 8 | N5: 180 | O5: 0.5599038588 | P5: 0.35011194 | Q5: OK | R5: OK | U5: 1
B6: 4 | C6: ④ | D6: T形 | E6: 0 | F6: 1 | G6: 70 | H6: 400 | I6: 20.11493492 | J6: 4.354167361 | K6: 38.5904026 | L6: -39.33678217 | M6: 8 | N6: 180 | O6: 0.5442709202 | P6: 0.2143911255 | Q6: OK | R6: OK | U6: 1
B7: 5 | C7: ⑤ | D7: T形 | E7: 0 | F7: 1 | G7: 70 | H7: 500 | I7: 24.83203697 | J7: 4.255798237 | K7: 18.42704514 | L7: -43.27096888 | M7: 8 | N7: 180 | O7: 0.5319747796 | P7: 0.102372473 | Q7: OK | R7: OK | U7: 1
B8: 6 | C8: ⑥負曲げ | D8: T形 | E8: 0 | F8: 1 | G8: -70 | H8: 150 | I8: 12.8189497 | J8: 7.933871117 | K8: 178.0722889 | L8: -44.73797784 | M8: 8 | N8: 180 | O8: 0.9917338897 | P8: 0.9892904941 | Q8: OK | R8: OK | U8: 1
B9: 7 | C9: ⑦全断面圧縮 | D9: T形 | E9: 0 | F9: 1 | G9: 70 | H9: 1000 | I9: 48.82130051 | J9: 4.939477998 | K9: -25.5283379 | L9: -61.95121195 | M9: 8 | N9: 180 | O9: 0.6174347497 | P9: -0.1418240995 | Q9: OK | R9: － | U9: 1
B10: 8 | C10: ⑧全断面引張 | D10: T形 | E10: 0 | F10: 1 | G10: 30 | H10: -400 | I10: -6.587933064 | J10: -2.269353613 | K10: 199.3865097 | L10: 75.37685558 | M10: 8 | N10: 180 | O10: -0.2836692016 | P10: 1.107702832 | Q10: － | R10: NG | U10: 1

Sheet 解析解との比較
Z1: 解析解
B2: ケース番号 | C2: 説明欄 | D2: 断面形状 | E2: 計算種類 | F2: 断面諸元番号 | G2: mf(kNm) | H2: nf(kN) | I2: x(cm) | J2: σc(N/mm2) | K2: σs(N/mm2) | L2: σs'(N/mm2) | M2: σca(N/mm2) | N2: σsa(N/mm2) | O2: 照査値σc/σca | P2: 照査値σs/σsa | Q2: 判定(σc) | R2: 判定(σs) | S2: 最外引張鉄筋量(cm2) | T2: 最外圧縮鉄筋量(cm2) | U2: 繰り返し数it | V2: σc1(N/mm2) | Z2: x (cm) | AA2: σc (N/mm2) | AB2: σs (N/mm2) | AC2: 照査値σc/σca | AD2: 照査値σs/σsa | AE2: 比 x | AF2: 比 σc | AG2: 比 σs | AH2: 比 σc/σca | AI2: 比 σs/σsa
B3: =応力度!B3 -> 1 | C3: =応力度!C3 -> ① | D3: =応力度!D3 -> T形 | E3: =応力度!E3 -> 0 | F3: =応力度!F3 -> 1 | G3: =応力度!G3 -> 70 | H3: =応力度!H3 -> 70 | I3: =応力度!I3 -> 11.2174654 | J3: =応力度!J3 -> 4.645057955 | K3: =応力度!K3 -> 129.0880884 | L3: =応力度!L3 -> -19.9848799 | M3: =応力度!M3 -> 8 | N3: =応力度!N3 -> 180 | O3: =応力度!O3 -> 0.5806322443 | P3: =応力度!P3 -> 0.7171560465 | Q3: =応力度!Q3 -> OK | R3: =応力度!R3 -> OK | S3: =応力度!S3 -> 0 | T3: =応力度!T3 -> 0 | U3: =応力度!U3 -> 1 | V3: =応力度!V3 -> 0 | X3: N=70kN | Z3: 11.21744202 | AA3: 4.645049463 | AB3: 129.0882667 | AC3: =AA3/M3 -> 0.5806311829 | AD3: =AB3/N3 -> 0.7171570372 | AE3: =I3/Z3 -> 1.000002084 | AF3: =J3/AA3 -> 1.000001828 | AG3: =K3/AB3 -> 0.9999986186 | AH3: =O3/AC3 -> 1.000001828 | AI3: =P3/AD3 -> 0.9999986186 | AJ3: マクロ
B4: =応力度!B4 -> 2 | C4: =応力度!C4 -> ② | D4: =応力度!D4 -> T形 | E4: =応力度!E4 -> 0 | F4: =応力度!F4 -> 1 | G4: =応力度!G4 -> 70 | H4: =応力度!H4 -> 150 | I4: =応力度!I4 -> 12.75404263 | J4: =応力度!J4 -> 4.624125878 | K4: =応力度!K4 -> 104.6676714 | L4: =応力度!L4 -> -25.85449826 | M4: =応力度!M4 -> 8 | N4: =応力度!N4 -> 180 | O4: =応力度!O4 -> 0.5780157347 | P4: =応力度!P4 -> 0.5814870636 | Q4: =応力度!Q4 -> OK | R4: =応力度!R4 -> OK | S4: =応力度!S4 -> 0 | T4: =応力度!T4 -> 0 | U4: =応力度!U4 -> 1 | V4: =応力度!V4 -> 0 | X4: N=150kN | Z4: 12.75407783 | AA4: 4.624134512 | AB4: 104.6673865 | AC4: =AA4/M4 -> 0.578016814 | AD4: =AB4/N4 -> 0.5814854807 | AE4: =I4/Z4 -> 0.9999972398 | AF4: =J4/AA4 -> 0.9999981328 | AG4: =K4/AB4 -> 1.000002722 | AH4: =O4/AC4 -> 0.9999981328 | AI4: =P4/AD4 -> 1.000002722 | AJ4: マクロ
B5: =応力度!B5 -> 3 | C5: =応力度!C5 -> ③ | D5: =応力度!D5 -> T形 | E5: =応力度!E5 -> 0 | F5: =応力度!F5 -> 1 | G5: =応力度!G5 -> 70 | H5: =応力度!H5 -> 300 | I5: =応力度!I5 -> 16.51220131 | J5: =応力度!J5 -> 4.479230871 | K5: =応力度!K5 -> 63.0201492 | L5: =応力度!L5 -> -34.63630999 | M5: =応力度!M5 -> 8 | N5: =応力度!N5 -> 180 | O5: =応力度!O5 -> 0.5599038588 | P5: =応力度!P5 -> 0.35011194 | Q5: =応力度!Q5 -> OK | R5: =応力度!R5 -> OK | S5: =応力度!S5 -> 0 | T5: =応力度!T5 -> 0 | U5: =応力度!U5 -> 1 | V5: =応力度!V5 -> 0 | X5: N=300kN | Z5: 16.5122441 | AA5: 4.47923282 | AB5: 63.01983921 | AC5: 0.5599041025 | AD5: 0.3501102179 | AE5: 0.9999974086 | AF5: 0.9999995647 | AG5: 1.000004919 | AH5: 0.9999995647 | AI5: 1.000004919 | AJ5: マクロ
B6: =応力度!B6 -> 4 | C6: =応力度!C6 -> ④ | D6: =応力度!D6 -> T形 | E6: =応力度!E6 -> 0 | F6: =応力度!F6 -> 1 | G6: =応力度!G6 -> 70 | H6: =応力度!H6 -> 400 | I6: =応力度!I6 -> 20.11493492 | J6: =応力度!J6 -> 4.354167361 | K6: =応力度!K6 -> 38.5904026 | L6: =応力度!L6 -> -39.33678217 | M6: =応力度!M6 -> 8 | N6: =応力度!N6 -> 180 | O6: =応力度!O6 -> 0.5442709202 | P6: =応力度!P6 -> 0.2143911255 | Q6: =応力度!Q6 -> OK | R6: =応力度!R6 -> OK | S6: =応力度!S6 -> 0 | T6: =応力度!T6 -> 0 | U6: =応力度!U6 -> 1 | V6: =応力度!V6 -> 0 | X6: N=400kN | Z6: 20.11496923 | AA6: 4.354166307 | AB6: 38.59021605 | AC6: 0.5442707884 | AD6: 0.2143900892 | AE6: 0.9999982945 | AF6: 1.000000242 | AG6: 1.000004834 | AH6: 1.000000242 | AI6: 1.000004834 | AJ6: マクロ
B7: =応力度!B7 -> 5 | C7: =応力度!C7 -> ⑤ | D7: =応力度!D7 -> T形 | E7: =応力度!E7 -> 0 | F7: =応力度!F7 -> 1 | G7: =応力度!G7 -> 70 | H7: =応力度!H7 -> 500 | I7: =応力度!I7 -> 24.83203697 | J7: =応力度!J7 -> 4.255798237 | K7: =応力度!K7 -> 18.42704514 | L7: =応力度!L7 -> -43.27096888 | M7: =応力度!M7 -> 8 | N7: =応力度!N7 -> 180 | O7: =応力度!O7 -> 0.5319747796 | P7: =応力度!P7 -> 0.102372473 | Q7: =応力度!Q7 -> OK | R7: =応力度!R7 -> OK | S7: =応力度!S7 -> 0 | T7: =応力度!T7 -> 0 | U7: =応力度!U7 -> 1 | V7: =応力度!V7 -> 0 | X7: N=500kN | Z7: 24.831988 | AA7: 4.255800911 | AB7: 18.42721895 | AC7: 0.5319751138 | AD7: 0.1023734386 | AE7: 1.000001972 | AF7: 0.9999993717 | AG7: 0.9999905681 | AH7: 0.9999993717 | AI7: 0.9999905681 | AJ7: マクロ
B8: =応力度!B8 -> 6 | C8: =応力度!C8 -> ⑥負曲げ | D8: =応力度!D8 -> T形 | E8: =応力度!E8 -> 0 | F8: =応力度!F8 -> 1 | G8: =応力度!G8 -> -70 | H8: =応力度!H8 -> 150 | I8: =応力度!I8 -> 12.8189497 | J8: =応力度!J8 -> 7.933871117 | K8: =応力度!K8 -> 178.0722889 | L8: =応力度!L8 -> -44.73797784 | M8: =応力度!M8 -> 8 | N8: =応力度!N8 -> 180 | O8: =応力度!O8 -> 0.9917338897 | P8: =応力度!P8 -> 0.9892904941 | Q8: =応力度!Q8 -> OK | R8: =応力度!R8 -> OK | S8: =応力度!S8 -> 0 | T8: =応力度!T8 -> 0 | U8: =応力度!U8 -> 1 | V8: =応力度!V8 -> 0 | X8: 負曲げ | Z8: 12.81892444 | AA8: 7.93386056 | AB8: 178.0726373 | AC8: =AA8/M8 -> 0.9917325699 | AD8: =AB8/N8 -> 0.9892924297 | AE8: =I8/Z8 -> 1.00000197 | AF8: =J8/AA8 -> 1.000001331 | AG8: =K8/AB8 -> 0.9999980434 | AH8: 1.000001331 | AI8: 0.9999980434 | AJ8: マクロ
B9: =応力度!B9 -> 7 | C9: =応力度!C9 -> ⑦全断面圧縮 | D9: =応力度!D9 -> T形 | E9: =応力度!E9 -> 0 | F9: =応力度!F9 -> 1 | G9: =応力度!G9 -> 70 | H9: =応力度!H9 -> 1000 | I9: =応力度!I9 -> 48.82130051 | J9: =応力度!J9 -> 4.939477998 | K9: =応力度!K9 -> -25.5283379 | L9: =応力度!L9 -> -61.95121195 | M9: =応力度!M9 -> 8 | N9: =応力度!N9 -> 180 | O9: =応力度!O9 -> 0.6174347497 | P9: =応力度!P9 -> -0.1418240995 | Q9: =応力度!Q9 -> OK | R9: =応力度!R9 -> － | S9: =応力度!S9 -> 0 | T9: =応力度!T9 -> 0 | U9: =応力度!U9 -> 1 | V9: =応力度!V9 -> 0 | X9: 全断面圧縮 | Z9: － | AA9: =AO27 -> 4.939475683 | AB9: － | AC9: =AA9/M9 -> 0.6174344604 | AD9: － | AE9: － | AF9: 1.000000469 | AG9: － | AH9: 1.000000469 | AI9: － | AJ9: 解析式
B10: =応力度!B10 -> 8 | C10: =応力度!C10 -> ⑧全断面引張 | D10: =応力度!D10 -> T形 | E10: =応力度!E10 -> 0 | F10: =応力度!F10 -> 1 | G10: =応力度!G10 -> 30 | H10: =応力度!H10 -> -400 | I10: =応力度!I10 -> -6.587933064 | J10: =応力度!J10 -> -2.269353613 | K10: =応力度!K10 -> 199.3865097 | L10: =応力度!L10 -> 75.37685558 | M10: =応力度!M10 -> 8 | N10: =応力度!N10 -> 180 | O10: =応力度!O10 -> -0.2836692016 | P10: =応力度!P10 -> 1.107702832 | Q10: =応力度!Q10 -> － | R10: =応力度!R10 -> NG | S10: =応力度!S10 -> 0 | T10: =応力度!T10 -> 0 | U10: =応力度!U10 -> 1 | V10: =応力度!V10 -> 0 | X10: 全断面引張 | Z10: － | AA10: － | AB10: =AQ28 -> 199.3865031 | AC10: － | AD10: =AB10/N10 -> 1.107702795 | AE10: － | AF10: － | AG10: 1.000000033 | AH10: － | AI10: 1.000000033 | AJ10: 解析式
AC12: 本マクロ | AF12: 解析解
Z13: ケース番号 | AA13: M (kNm) | AB13: N （kN） | AC13: x （cm） | AD13: σc (N/mm2) | AE13: σs (N/mm2) | AF13: x (cm) | AG13: σc (N/mm2) | AH13: σs (N/mm2) | AI13: 比 (x) | AJ13: 比 (σc) | AK13: 比 (σs) | AL13: 備考
Z14: =B3 -> 1 | AA14: =G3 -> 70 | AB14: =H3 -> 70 | AC14: =I3 -> 11.2174654 | AD14: =J3 -> 4.645057955 | AE14: =K3 -> 129.0880884 | AF14: =Z3 -> 11.21744202 | AG14: =AA3 -> 4.645049463 | AH14: 129.0882667 | AI14: =AE3 -> 1.000002084 | AJ14: =AF3 -> 1.000001828 | AK14: 0.9999986186 | AL14: =X3 -> N=70kN
Z15: =B4 -> 2 | AA15: =G4 -> 70 | AB15: 150 | AC15: 12.75404263 | AD15: 4.624125878 | AE15: 104.6676714 | AF15: =Z4 -> 12.75407783 | AG15: =AA4 -> 4.624134512 | AH15: =AB4 -> 104.6673865 | AI15: =AE4 -> 0.9999972398 | AJ15: =AF4 -> 0.9999981328 | AK15: =AG4 -> 1.000002722 | AL15: =X4 -> N=150kN
Z16: 3 | AA16: =G5 -> 70 | AB16: 300 | AC16: 16.51220131 | AD16: 4.479230871 | AE16: 63.0201492 | AF16: 16.5122441 | AG16: 4.47923282 | AH16: 63.01983921 | AI16: 0.9999974086 | AJ16: 0.9999995647 | AK16: 1.000004919 | AL16: N=300kN
Z17: 4 | AA17: =G6 -> 70 | AB17: 400 | AC17: 20.11493492 | AD17: 4.354167361 | AE17: 38.5904026 | AF17: 20.11496923 | AG17: 4.354166307 | AH17: 38.59021605 | AI17: 0.9999982945 | AJ17: 1.000000242 | AK17: 1.000004834 | AL17: N=400kN
Z18: 5 | AA18: =G7 -> 70 | AB18: 500 | AC18: 24.83203697 | AD18: 4.255798237 | AE18: 18.42704514 | AF18: 24.831988 | AG18: 4.255800911 | AH18: 18.42721895 | AI18: 1.000001972 | AJ18: 0.9999993717 | AK18: 0.9999905681 | AL18: N=500kN
Z19: 6 | AA19: =G8 -> -70 | AB19: =H8 -> 150 | AC19: =I8 -> 12.8189497 | AD19: =J8 -> 7.933871117 | AE19: =K8 -> 178.0722889 | AF19: =Z8 -> 12.81892444 | AG19: =AA8 -> 7.93386056 | AH19: =AB8 -> 178.0726373 | AI19: =AE8 -> 1.00000197 | AJ19: =AF8 -> 1.000001331 | AK19: =AG8 -> 0.9999980434 | AL19: =X8 -> 負曲げ
Z20: =B9 -> 7 | AA20: =G9 -> 70 | AB20: =H9 -> 1000 | AC20: =I9 -> 48.82130051 | AD20: 4.939477998 | AE20: － | AF20: － | AG20: =AO27 -> 4.939475683 | AH20: － | AI20: =AE9 -> － | AJ20: =AF9 -> 1.000000469 | AK20: =AG9 -> － | AL20: =X9 -> 全断面圧縮
Z21: =B10 -> 8 | AA21: =G10 -> 30 | AB21: =H10 -> -400 | AC21: =I10 -> -6.587933064 | AD21: － | AE21: 199.3865097 | AF21: － | AG21: － | AH21: =AB10 -> 199.3865031 | AI21: － | AJ21: － | AK21: 1.000000033 | AL21: =X10 -> 全断面引張
Z24: 全断面圧縮・引張
Z25: ケース7,8 | AA25: isw | AB25: 1
Z26: h (cm) | AA26: b (cm) | AB26: t (cm) | AC26: bw (cm) | AD26: As1 (cm2) | AE26: As2 (cm2) | AF26: d1 (cm) | AG26: d2 (cm) | AH26: yc (cm) | AI26: yt (cm) | AJ26: M (kNm) | AK26: N (kN) | AL26: e (cm) | AM26: Ag (cm2) | AN26: Ig (cm4) | AO26: σc (N/mm2) | AP26: σt (N/mm2) | AQ26: σs (N/mm2) | AR26: σｓ’ (N/mm2)
Z27: ='入力データ2(T形)'!D4 -> 40 | AA27: ='入力データ2(T形)'!E4 -> 100 | AB27: ='入力データ2(T形)'!F4 -> 15 | AC27: ='入力データ2(T形)'!G4 -> 50 | AD27: ='入力データ2(T形)'!N4 -> 16.3 | AE27: ='入力データ2(T形)'!L4 -> 9.95 | AF27: ='入力データ2(T形)'!M4 -> 32 | AG27: ='入力データ2(T形)'!K4 -> 8 | AH27: =(AA27*AB27^2/2+AC27*(Z27^2-AB27^2)/2+15*(AD27*AF27+AE27*AG27))/(AA27*AB27+AC27*(Z27-AB27)+15*(AD27+AE27)) -> 17.38147117 | AI27: =Z27-AH27 -> 22.61852883 | AJ27: =G9 -> 70 | AK27: =H9 -> 1000 | AL27: =AJ27/AK27*100 -> 7 | AM27: =AA27*AB27+AC27*(Z27-AB27)+15*(AD27+AE27) -> 3143.75 | AN27: =(AA27*AH27^3-(AA27-AC27)*(AH27-AB27)^3+AC27*AI27^3)/3+15*(AD27*(AF27-AH27)^2+AE27*(AH27-AG27)^2) -> 433060.9374 | AO27: =IF($AB$25=1,(AK27/AM27+(AJ27*100+AK27*(AH27-Z27/2))/AN27*AH27)*10,(AK27/AM27+AJ27*100/AN27*AH27)*10) -> 4.939475683 | AP27: =IF($AB$25=1,(AK27/AM27-(AJ27*100+AK27*(AH27-Z27/2))/AN27*AI27)*10,(AK27/AM27-AJ27*100/AN27*AI27)*10) -> 0.8924967989 | AQ27: =-15*(AO27-AF27/Z27*(AO27-AP27)) -> -25.52838864 | AR27: =-15*(AO27-AG27/Z27*(AO27-AP27)) -> -61.9511986
Z28: =Z27 -> 40 | AA28: 0 | AB28: 15 | AC28: 0 | AD28: =AD27 -> 16.3 | AE28: 9.95 | AF28: 32 | AG28: 8 | AH28: =(AA28*AB28^2/2+AC28*(Z28^2-AB28^2)/2+15*(AD28*AF28+AE28*AG28))/(AA28*AB28+AC28*(Z28-AB28)+15*(AD28+AE28)) -> 22.90285714 | AI28: =Z28-AH28 -> 17.09714286 | AJ28: =G10 -> 30 | AK28: =H10 -> -400 | AL28: =AJ28/AK28*100 -> -7.5 | AM28: =AA28*AB28+AC28*(Z28-AB28)+15*(AD28+AE28) -> 393.75 | AN28: =(AA28*AH28^3-(AA28-AC28)*(AH28-AB28)^3+AC28*AI28^3)/3+15*(AD28*(AF28-AH28)^2+AE28*(AH28-AG28)^2) -> 53382.03429 | AO28: =IF($AB$25=1,(AK28/AM28+(AJ28*100+AK28*(AH28-Z28/2))/AN28*AH28)*10,(AK28/AM28+AJ28*100/AN28*AH28)*10) -> -2.269356325 | AP28: =IF($AB$25=1,(AK28/AM28-(AJ28*100+AK28*(AH28-Z28/2))/AN28*AI28)*10,(AK28/AM28-AJ28*100/AN28*AI28)*10) -> -16.04820284 | AQ28: =-15*(AO28-AF28/Z28*(AO28-AP28)) -> 199.3865031 | AR28: =-15*(AO28-AG28/Z28*(AO28-AP28)) -> 75.37688442

Sheet 中立軸計算
B2: ケース番号 | C2: 1 | D2: 2 | E2: 3 | F2: 4 | G2: 5 | H2: 6 | I2: 7 | J2: 8
B3: nrep | C3: 21 | D3: 21 | E3: 20 | F3: 20 | G3: 20 | H3: 21 | I3: 19 | J3: 22
B4: 以下、xj(icase,jc) | C4: -2 | D4: -2 | E4: -2 | F4: -2 | G4: -2 | H4: -2 | I4: -2 | J4: -2
C5: 39 | D5: 39 | E5: 39 | F5: 39 | G5: 39 | H5: 39 | I5: 39 | J5: -43
C6: 18.5 | D6: 18.5 | E6: 18.5 | F6: 18.5 | G6: 18.5 | H6: 18.5 | I6: 59.5 | J6: -22.5
C7: 8.25 | D7: 8.25 | E7: 8.25 | F7: 28.75 | G7: 28.75 | H7: 8.25 | I7: 49.25 | J7: -12.25
C8: 13.375 | D8: 13.375 | E8: 13.375 | F8: 23.625 | G8: 23.625 | H8: 13.375 | I8: 44.125 | J8: -7.125
C9: 10.8125 | D9: 10.8125 | E9: 15.9375 | F9: 21.0625 | G9: 26.1875 | H9: 10.8125 | I9: 46.6875 | J9: -4.5625
C10: 12.09375 | D10: 12.09375 | E10: 17.21875 | F10: 19.78125 | G10: 24.90625 | H10: 12.09375 | I10: 47.96875 | J10: -5.84375
C11: 11.453125 | D11: 12.734375 | E11: 16.578125 | F11: 20.421875 | G11: 24.265625 | H11: 12.734375 | I11: 48.609375 | J11: -6.484375
C12: 11.1328125 | D12: 13.0546875 | E12: 16.2578125 | F12: 20.1015625 | G12: 24.5859375 | H12: 13.0546875 | I12: 48.9296875 | J12: -6.8046875
C13: 11.29296875 | D13: 12.89453125 | E13: 16.41796875 | F13: 20.26171875 | G13: 24.74609375 | H13: 12.89453125 | I13: 48.76953125 | J13: -6.64453125
C14: 11.21289062 | D14: 12.81445312 | E14: 16.49804688 | F14: 20.18164062 | G14: 24.82617188 | H14: 12.81445312 | I14: 48.84960938 | J14: -6.564453125
C15: 11.25292969 | D15: 12.77441406 | E15: 16.53808594 | F15: 20.14160156 | G15: 24.86621094 | H15: 12.85449219 | I15: 48.80957031 | J15: -6.604492188
C16: 11.23291016 | D16: 12.75439453 | E16: 16.51806641 | F16: 20.12158203 | G16: 24.84619141 | H16: 12.83447266 | I16: 48.82958984 | J16: -6.584472656
C17: 11.22290039 | D17: 12.74438477 | E17: 16.50805664 | F17: 20.11157227 | G17: 24.83618164 | H17: 12.82446289 | I17: 48.81958008 | J17: -6.594482422
C18: 11.21789551 | D18: 12.74938965 | E18: 16.51306152 | F18: 20.11657715 | G18: 24.83117676 | H18: 12.81945801 | I18: 48.82458496 | J18: -6.589477539
C19: 11.21539307 | D19: 12.75189209 | E19: 16.51055908 | F19: 20.11407471 | G19: 24.8336792 | H19: 12.81695557 | I19: 48.82208252 | J19: -6.586975098
C20: 11.21664429 | D20: 12.75314331 | E20: 16.5118103 | F20: 20.11532593 | G20: 24.83242798 | H20: 12.81820679 | I20: 48.8208313 | J20: -6.588226318
C21: 11.2172699 | D21: 12.75376892 | E21: 16.51243591 | F21: 20.11470032 | G21: 24.83180237 | H21: 12.8188324 | I21: 48.82145691 | J21: -6.587600708
C22: 11.2175827 | D22: 12.75408173 | E22: 16.51212311 | F22: 20.11501312 | G22: 24.83211517 | H22: 12.8191452 | I22: 48.8211441 | J22: -6.587913513
C23: 11.2174263 | D23: 12.75392532 | E23: 16.51227951 | F23: 20.11485672 | G23: 24.83195877 | H23: 12.8189888 | J23: -6.588069916
C24: 11.2175045 | D24: 12.75400352 | H24: 12.8189106 | J24: -6.587991714
J25: -6.587952614

Sheet チェック用
B2: 1 (X) | C2: 1 (FX) | D2: 2 (X) | E2: 2 (FX) | F2: 3 (X) | G2: 3 (FX) | H2: 4 (X) | I2: 4 (FX) | J2: 5 (X) | K2: 5 (FX) | L2: 6 (X) | M2: 6 (FX) | N2: 7 (X) | O2: 7 (FX) | P2: 8 (X) | Q2: 8 (FX)
B3: -84 | C3: -306941040 | D3: -84 | E3: -320986800 | F3: -84 | G3: -347322600 | H3: -84 | I3: -364879800 | J3: -84 | K3: -382437000 | L3: -84 | M3: -269323200 | N3: -84 | O3: -470223000 | P3: -84 | Q3: -56050200
B4: -83.836 | C4: -306475893.4 | D4: -83.836 | E4: -320506657.2 | F4: -83.836 | G4: -346814339.4 | H4: -83.836 | I4: -364352794.2 | J4: -83.836 | K4: -381891249 | L4: -83.836 | M4: -268899292.8 | N4: -83.836 | O4: -469583523 | P4: -83.836 | Q4: -55931455.8
B5: -83.672 | C5: -306010746.7 | D5: -83.672 | E5: -320026514.4 | F5: -83.672 | G5: -346306078.8 | H5: -83.672 | I5: -363825788.4 | J5: -83.672 | K5: -381345498 | L5: -83.672 | M5: -268475385.6 | N5: -83.672 | O5: -468944046 | P5: -83.672 | Q5: -55812711.6
B6: -83.508 | C6: -305545600.1 | D6: -83.508 | E6: -319546371.6 | F6: -83.508 | G6: -345797818.2 | H6: -83.508 | I6: -363298782.6 | J6: -83.508 | K6: -380799747 | L6: -83.508 | M6: -268051478.4 | N6: -83.508 | O6: -468304569 | P6: -83.508 | Q6: -55693967.4
B7: -83.344 | C7: -305080453.4 | D7: -83.344 | E7: -319066228.8 | F7: -83.344 | G7: -345289557.6 | H7: -83.344 | I7: -362771776.8 | J7: -83.344 | K7: -380253996 | L7: -83.344 | M7: -267627571.2 | N7: -83.344 | O7: -467665092 | P7: -83.344 | Q7: -55575223.2
B8: -83.18 | C8: -304615306.8 | D8: -83.18 | E8: -318586086 | F8: -83.18 | G8: -344781297 | H8: -83.18 | I8: -362244771 | J8: -83.18 | K8: -379708245 | L8: -83.18 | M8: -267203664 | N8: -83.18 | O8: -467025615 | P8: -83.18 | Q8: -55456479
B9: -83.016 | C9: -304150160.2 | D9: -83.016 | E9: -318105943.2 | F9: -83.016 | G9: -344273036.4 | H9: -83.016 | I9: -361717765.2 | J9: -83.016 | K9: -379162494 | L9: -83.016 | M9: -266779756.8 | N9: -83.016 | O9: -466386138 | P9: -83.016 | Q9: -55337734.8
B10: -82.852 | C10: -303685013.5 | D10: -82.852 | E10: -317625800.4 | F10: -82.852 | G10: -343764775.8 | H10: -82.852 | I10: -361190759.4 | J10: -82.852 | K10: -378616743 | L10: -82.852 | M10: -266355849.6 | N10: -82.852 | O10: -465746661 | P10: -82.852 | Q10: -55218990.6
B11: -82.688 | C11: -303219866.9 | D11: -82.688 | E11: -317145657.6 | F11: -82.688 | G11: -343256515.2 | H11: -82.688 | I11: -360663753.6 | J11: -82.688 | K11: -378070992 | L11: -82.688 | M11: -265931942.4 | N11: -82.688 | O11: -465107184 | P11: -82.688 | Q11: -55100246.4
B12: -82.524 | C12: -302754720.2 | D12: -82.524 | E12: -316665514.8 | F12: -82.524 | G12: -342748254.6 | H12: -82.524 | I12: -360136747.8 | J12: -82.524 | K12: -377525241 | L12: -82.524 | M12: -265508035.2 | N12: -82.524 | O12: -464467707 | P12: -82.524 | Q12: -54981502.2
B13: -82.36 | C13: -302289573.6 | D13: -82.36 | E13: -316185372 | F13: -82.36 | G13: -342239994 | H13: -82.36 | I13: -359609742 | J13: -82.36 | K13: -376979490 | L13: -82.36 | M13: -265084128 | N13: -82.36 | O13: -463828230 | P13: -82.36 | Q13: -54862758
B14: -82.196 | C14: -301824427 | D14: -82.196 | E14: -315705229.2 | F14: -82.196 | G14: -341731733.4 | H14: -82.196 | I14: -359082736.2 | J14: -82.196 | K14: -376433739 | L14: -82.196 | M14: -264660220.8 | N14: -82.196 | O14: -463188753 | P14: -82.196 | Q14: -54744013.8
B15: -82.032 | C15: -301359280.3 | D15: -82.032 | E15: -315225086.4 | F15: -82.032 | G15: -341223472.8 | H15: -82.032 | I15: -358555730.4 | J15: -82.032 | K15: -375887988 | L15: -82.032 | M15: -264236313.6 | N15: -82.032 | O15: -462549276 | P15: -82.032 | Q15: -54625269.6
B16: -81.868 | C16: -300894133.7 | D16: -81.868 | E16: -314744943.6 | F16: -81.868 | G16: -340715212.2 | H16: -81.868 | I16: -358028724.6 | J16: -81.868 | K16: -375342237 | L16: -81.868 | M16: -263812406.4 | N16: -81.868 | O16: -461909799 | P16: -81.868 | Q16: -54506525.4
B17: -81.704 | C17: -300428987 | D17: -81.704 | E17: -314264800.8 | F17: -81.704 | G17: -340206951.6 | H17: -81.704 | I17: -357501718.8 | J17: -81.704 | K17: -374796486 | L17: -81.704 | M17: -263388499.2 | N17: -81.704 | O17: -461270322 | P17: -81.704 | Q17: -54387781.2
B18: -81.54 | C18: -299963840.4 | D18: -81.54 | E18: -313784658 | F18: -81.54 | G18: -339698691 | H18: -81.54 | I18: -356974713 | J18: -81.54 | K18: -374250735 | L18: -81.54 | M18: -262964592 | N18: -81.54 | O18: -460630845 | P18: -81.54 | Q18: -54269037
B19: -81.376 | C19: -299498693.8 | D19: -81.376 | E19: -313304515.2 | F19: -81.376 | G19: -339190430.4 | H19: -81.376 | I19: -356447707.2 | J19: -81.376 | K19: -373704984 | L19: -81.376 | M19: -262540684.8 | N19: -81.376 | O19: -459991368 | P19: -81.376 | Q19: -54150292.8
B20: -81.212 | C20: -299033547.1 | D20: -81.212 | E20: -312824372.4 | F20: -81.212 | G20: -338682169.8 | H20: -81.212 | I20: -355920701.4 | J20: -81.212 | K20: -373159233 | L20: -81.212 | M20: -262116777.6 | N20: -81.212 | O20: -459351891 | P20: -81.212 | Q20: -54031548.6
B21: -81.048 | C21: -298568400.5 | D21: -81.048 | E21: -312344229.6 | F21: -81.048 | G21: -338173909.2 | H21: -81.048 | I21: -355393695.6 | J21: -81.048 | K21: -372613482 | L21: -81.048 | M21: -261692870.4 | N21: -81.048 | O21: -458712414 | P21: -81.048 | Q21: -53912804.4
B22: -80.884 | C22: -298103253.8 | D22: -80.884 | E22: -311864086.8 | F22: -80.884 | G22: -337665648.6 | H22: -80.884 | I22: -354866689.8 | J22: -80.884 | K22: -372067731 | L22: -80.884 | M22: -261268963.2 | N22: -80.884 | O22: -458072937 | P22: -80.884 | Q22: -53794060.2
B23: -80.72 | C23: -297638107.2 | D23: -80.72 | E23: -311383944 | F23: -80.72 | G23: -337157388 | H23: -80.72 | I23: -354339684 | J23: -80.72 | K23: -371521980 | L23: -80.72 | M23: -260845056 | N23: -80.72 | O23: -457433460 | P23: -80.72 | Q23: -53675316
B24: -80.556 | C24: -297172960.6 | D24: -80.556 | E24: -310903801.2 | F24: -80.556 | G24: -336649127.4 | H24: -80.556 | I24: -353812678.2 | J24: -80.556 | K24: -370976229 | L24: -80.556 | M24: -260421148.8 | N24: -80.556 | O24: -456793983 | P24: -80.556 | Q24: -53556571.8
B25: -80.392 | C25: -296707813.9 | D25: -80.392 | E25: -310423658.4 | F25: -80.392 | G25: -336140866.8 | H25: -80.392 | I25: -353285672.4 | J25: -80.392 | K25: -370430478 | L25: -80.392 | M25: -259997241.6 | N25: -80.392 | O25: -456154506 | P25: -80.392 | Q25: -53437827.6
B26: -80.228 | C26: -296242667.3 | D26: -80.228 | E26: -309943515.6 | F26: -80.228 | G26: -335632606.2 | H26: -80.228 | I26: -352758666.6 | J26: -80.228 | K26: -369884727 | L26: -80.228 | M26: -259573334.4 | N26: -80.228 | O26: -455515029 | P26: -80.228 | Q26: -53319083.4
B27: -80.064 | C27: -295777520.6 | D27: -80.064 | E27: -309463372.8 | F27: -80.064 | G27: -335124345.6 | H27: -80.064 | I27: -352231660.8 | J27: -80.064 | K27: -369338976 | L27: -80.064 | M27: -259149427.2 | N27: -80.064 | O27: -454875552 | P27: -80.064 | Q27: -53200339.2
B28: -79.9 | C28: -295312374 | D28: -79.9 | E28: -308983230 | F28: -79.9 | G28: -334616085 | H28: -79.9 | I28: -351704655 | J28: -79.9 | K28: -368793225 | L28: -79.9 | M28: -258725520 | N28: -79.9 | O28: -454236075 | P28: -79.9 | Q28: -53081595
B29: -79.736 | C29: -294847227.4 | D29: -79.736 | E29: -308503087.2 | F29: -79.736 | G29: -334107824.4 | H29: -79.736 | I29: -351177649.2 | J29: -79.736 | K29: -368247474 | L29: -79.736 | M29: -258301612.8 | N29: -79.736 | O29: -453596598 | P29: -79.736 | Q29: -52962850.8
B30: -79.572 | C30: -294382080.7 | D30: -79.572 | E30: -308022944.4 | F30: -79.572 | G30: -333599563.8 | H30: -79.572 | I30: -350650643.4 | J30: -79.572 | K30: -367701723 | L30: -79.572 | M30: -257877705.6 | N30: -79.572 | O30: -452957121 | P30: -79.572 | Q30: -52844106.6
B31: -79.408 | C31: -293916934.1 | D31: -79.408 | E31: -307542801.6 | F31: -79.408 | G31: -333091303.2 | H31: -79.408 | I31: -350123637.6 | J31: -79.408 | K31: -367155972 | L31: -79.408 | M31: -257453798.4 | N31: -79.408 | O31: -452317644 | P31: -79.408 | Q31: -52725362.4
B32: -79.244 | C32: -293451787.4 | D32: -79.244 | E32: -307062658.8 | F32: -79.244 | G32: -332583042.6 | H32: -79.244 | I32: -349596631.8 | J32: -79.244 | K32: -366610221 | L32: -79.244 | M32: -257029891.2 | N32: -79.244 | O32: -451678167 | P32: -79.244 | Q32: -52606618.2
B33: -79.08 | C33: -292986640.8 | D33: -79.08 | E33: -306582516 | F33: -79.08 | G33: -332074782 | H33: -79.08 | I33: -349069626 | J33: -79.08 | K33: -366064470 | L33: -79.08 | M33: -256605984 | N33: -79.08 | O33: -451038690 | P33: -79.08 | Q33: -52487874
B34: -78.916 | C34: -292521494.2 | D34: -78.916 | E34: -306102373.2 | F34: -78.916 | G34: -331566521.4 | H34: -78.916 | I34: -348542620.2 | J34: -78.916 | K34: -365518719 | L34: -78.916 | M34: -256182076.8 | N34: -78.916 | O34: -450399213 | P34: -78.916 | Q34: -52369129.8
B35: -78.752 | C35: -292056347.5 | D35: -78.752 | E35: -305622230.4 | F35: -78.752 | G35: -331058260.8 | H35: -78.752 | I35: -348015614.4 | J35: -78.752 | K35: -364972968 | L35: -78.752 | M35: -255758169.6 | N35: -78.752 | O35: -449759736 | P35: -78.752 | Q35: -52250385.6
B36: -78.588 | C36: -291591200.9 | D36: -78.588 | E36: -305142087.6 | F36: -78.588 | G36: -330550000.2 | H36: -78.588 | I36: -347488608.6 | J36: -78.588 | K36: -364427217 | L36: -78.588 | M36: -255334262.4 | N36: -78.588 | O36: -449120259 | P36: -78.588 | Q36: -52131641.4
B37: -78.424 | C37: -291126054.2 | D37: -78.424 | E37: -304661944.8 | F37: -78.424 | G37: -330041739.6 | H37: -78.424 | I37: -346961602.8 | J37: -78.424 | K37: -363881466 | L37: -78.424 | M37: -254910355.2 | N37: -78.424 | O37: -448480782 | P37: -78.424 | Q37: -52012897.2
B38: -78.26 | C38: -290660907.6 | D38: -78.26 | E38: -304181802 | F38: -78.26 | G38: -329533479 | H38: -78.26 | I38: -346434597 | J38: -78.26 | K38: -363335715 | L38: -78.26 | M38: -254486448 | N38: -78.26 | O38: -447841305 | P38: -78.26 | Q38: -51894153
B39: -78.096 | C39: -290195761 | D39: -78.096 | E39: -303701659.2 | F39: -78.096 | G39: -329025218.4 | H39: -78.096 | I39: -345907591.2 | J39: -78.096 | K39: -362789964 | L39: -78.096 | M39: -254062540.8 | N39: -78.096 | O39: -447201828 | P39: -78.096 | Q39: -51775408.8
B40: -77.932 | C40: -289730614.3 | D40: -77.932 | E40: -303221516.4 | F40: -77.932 | G40: -328516957.8 | H40: -77.932 | I40: -345380585.4 | J40: -77.932 | K40: -362244213 | L40: -77.932 | M40: -253638633.6 | N40: -77.932 | O40: -446562351 | P40: -77.932 | Q40: -51656664.6
B41: -77.768 | C41: -289265467.7 | D41: -77.768 | E41: -302741373.6 | F41: -77.768 | G41: -328008697.2 | H41: -77.768 | I41: -344853579.6 | J41: -77.768 | K41: -361698462 | L41: -77.768 | M41: -253214726.4 | N41: -77.768 | O41: -445922874 | P41: -77.768 | Q41: -51537920.4
B42: -77.604 | C42: -288800321 | D42: -77.604 | E42: -302261230.8 | F42: -77.604 | G42: -327500436.6 | H42: -77.604 | I42: -344326573.8 | J42: -77.604 | K42: -361152711 | L42: -77.604 | M42: -252790819.2 | N42: -77.604 | O42: -445283397 | P42: -77.604 | Q42: -51419176.2
B43: -77.44 | C43: -288335174.4 | D43: -77.44 | E43: -301781088 | F43: -77.44 | G43: -326992176 | H43: -77.44 | I43: -343799568 | J43: -77.44 | K43: -360606960 | L43: -77.44 | M43: -252366912 | N43: -77.44 | O43: -444643920 | P43: -77.44 | Q43: -51300432
B44: -77.276 | C44: -287870027.8 | D44: -77.276 | E44: -301300945.2 | F44: -77.276 | G44: -326483915.4 | H44: -77.276 | I44: -343272562.2 | J44: -77.276 | K44: -360061209 | L44: -77.276 | M44: -251943004.8 | N44: -77.276 | O44: -444004443 | P44: -77.276 | Q44: -51181687.8
B45: -77.112 | C45: -287404881.1 | D45: -77.112 | E45: -300820802.4 | F45: -77.112 | G45: -325975654.8 | H45: -77.112 | I45: -342745556.4 | J45: -77.112 | K45: -359515458 | L45: -77.112 | M45: -251519097.6 | N45: -77.112 | O45: -443364966 | P45: -77.112 | Q45: -51062943.6
B46: -76.948 | C46: -286939734.5 | D46: -76.948 | E46: -300340659.6 | F46: -76.948 | G46: -325467394.2 | H46: -76.948 | I46: -342218550.6 | J46: -76.948 | K46: -358969707 | L46: -76.948 | M46: -251095190.4 | N46: -76.948 | O46: -442725489 | P46: -76.948 | Q46: -50944199.4
B47: -76.784 | C47: -286474587.8 | D47: -76.784 | E47: -299860516.8 | F47: -76.784 | G47: -324959133.6 | H47: -76.784 | I47: -341691544.8 | J47: -76.784 | K47: -358423956 | L47: -76.784 | M47: -250671283.2 | N47: -76.784 | O47: -442086012 | P47: -76.784 | Q47: -50825455.2
B48: -76.62 | C48: -286009441.2 | D48: -76.62 | E48: -299380374 | F48: -76.62 | G48: -324450873 | H48: -76.62 | I48: -341164539 | J48: -76.62 | K48: -357878205 | L48: -76.62 | M48: -250247376 | N48: -76.62 | O48: -441446535 | P48: -76.62 | Q48: -50706711
B49: -76.456 | C49: -285544294.6 | D49: -76.456 | E49: -298900231.2 | F49: -76.456 | G49: -323942612.4 | H49: -76.456 | I49: -340637533.2 | J49: -76.456 | K49: -357332454 | L49: -76.456 | M49: -249823468.8 | N49: -76.456 | O49: -440807058 | P49: -76.456 | Q49: -50587966.8
B50: -76.292 | C50: -285079147.9 | D50: -76.292 | E50: -298420088.4 | F50: -76.292 | G50: -323434351.8 | H50: -76.292 | I50: -340110527.4 | J50: -76.292 | K50: -356786703 | L50: -76.292 | M50: -249399561.6 | N50: -76.292 | O50: -440167581 | P50: -76.292 | Q50: -50469222.6
B51: -76.128 | C51: -284614001.3 | D51: -76.128 | E51: -297939945.6 | F51: -76.128 | G51: -322926091.2 | H51: -76.128 | I51: -339583521.6 | J51: -76.128 | K51: -356240952 | L51: -76.128 | M51: -248975654.4 | N51: -76.128 | O51: -439528104 | P51: -76.128 | Q51: -50350478.4
B52: -75.964 | C52: -284148854.6 | D52: -75.964 | E52: -297459802.8 | F52: -75.964 | G52: -322417830.6 | H52: -75.964 | I52: -339056515.8 | J52: -75.964 | K52: -355695201 | L52: -75.964 | M52: -248551747.2 | N52: -75.964 | O52: -438888627 | P52: -75.964 | Q52: -50231734.2
B53: -75.8 | C53: -283683708 | D53: -75.8 | E53: -296979660 | F53: -75.8 | G53: -321909570 | H53: -75.8 | I53: -338529510 | J53: -75.8 | K53: -355149450 | L53: -75.8 | M53: -248127840 | N53: -75.8 | O53: -438249150 | P53: -75.8 | Q53: -50112990
B54: -75.636 | C54: -283218561.4 | D54: -75.636 | E54: -296499517.2 | F54: -75.636 | G54: -321401309.4 | H54: -75.636 | I54: -338002504.2 | J54: -75.636 | K54: -354603699 | L54: -75.636 | M54: -247703932.8 | N54: -75.636 | O54: -437609673 | P54: -75.636 | Q54: -49994245.8
B55: -75.472 | C55: -282753414.7 | D55: -75.472 | E55: -296019374.4 | F55: -75.472 | G55: -320893048.8 | H55: -75.472 | I55: -337475498.4 | J55: -75.472 | K55: -354057948 | L55: -75.472 | M55: -247280025.6 | N55: -75.472 | O55: -436970196 | P55: -75.472 | Q55: -49875501.6
B56: -75.308 | C56: -282288268.1 | D56: -75.308 | E56: -295539231.6 | F56: -75.308 | G56: -320384788.2 | H56: -75.308 | I56: -336948492.6 | J56: -75.308 | K56: -353512197 | L56: -75.308 | M56: -246856118.4 | N56: -75.308 | O56: -436330719 | P56: -75.308 | Q56: -49756757.4
B57: -75.144 | C57: -281823121.4 | D57: -75.144 | E57: -295059088.8 | F57: -75.144 | G57: -319876527.6 | H57: -75.144 | I57: -336421486.8 | J57: -75.144 | K57: -352966446 | L57: -75.144 | M57: -246432211.2 | N57: -75.144 | O57: -435691242 | P57: -75.144 | Q57: -49638013.2
B58: -74.98 | C58: -281357974.8 | D58: -74.98 | E58: -294578946 | F58: -74.98 | G58: -319368267 | H58: -74.98 | I58: -335894481 | J58: -74.98 | K58: -352420695 | L58: -74.98 | M58: -246008304 | N58: -74.98 | O58: -435051765 | P58: -74.98 | Q58: -49519269
B59: -74.816 | C59: -280892828.2 | D59: -74.816 | E59: -294098803.2 | F59: -74.816 | G59: -318860006.4 | H59: -74.816 | I59: -335367475.2 | J59: -74.816 | K59: -351874944 | L59: -74.816 | M59: -245584396.8 | N59: -74.816 | O59: -434412288 | P59: -74.816 | Q59: -49400524.8
B60: -74.652 | C60: -280427681.5 | D60: -74.652 | E60: -293618660.4 | F60: -74.652 | G60: -318351745.8 | H60: -74.652 | I60: -334840469.4 | J60: -74.652 | K60: -351329193 | L60: -74.652 | M60: -245160489.6 | N60: -74.652 | O60: -433772811 | P60: -74.652 | Q60: -49281780.6
B61: -74.488 | C61: -279962534.9 | D61: -74.488 | E61: -293138517.6 | F61: -74.488 | G61: -317843485.2 | H61: -74.488 | I61: -334313463.6 | J61: -74.488 | K61: -350783442 | L61: -74.488 | M61: -244736582.4 | N61: -74.488 | O61: -433133334 | P61: -74.488 | Q61: -49163036.4
B62: -74.324 | C62: -279497388.2 | D62: -74.324 | E62: -292658374.8 | F62: -74.324 | G62: -317335224.6 | H62: -74.324 | I62: -333786457.8 | J62: -74.324 | K62: -350237691 | L62: -74.324 | M62: -244312675.2 | N62: -74.324 | O62: -432493857 | P62: -74.324 | Q62: -49044292.2
B63: -74.16 | C63: -279032241.6 | D63: -74.16 | E63: -292178232 | F63: -74.16 | G63: -316826964 | H63: -74.16 | I63: -333259452 | J63: -74.16 | K63: -349691940 | L63: -74.16 | M63: -243888768 | N63: -74.16 | O63: -431854380 | P63: -74.16 | Q63: -48925548
B64: -73.996 | C64: -278567095 | D64: -73.996 | E64: -291698089.2 | F64: -73.996 | G64: -316318703.4 | H64: -73.996 | I64: -332732446.2 | J64: -73.996 | K64: -349146189 | L64: -73.996 | M64: -243464860.8 | N64: -73.996 | O64: -431214903 | P64: -73.996 | Q64: -48806803.8
B65: -73.832 | C65: -278101948.3 | D65: -73.832 | E65: -291217946.4 | F65: -73.832 | G65: -315810442.8 | H65: -73.832 | I65: -332205440.4 | J65: -73.832 | K65: -348600438 | L65: -73.832 | M65: -243040953.6 | N65: -73.832 | O65: -430575426 | P65: -73.832 | Q65: -48688059.6
B66: -73.668 | C66: -277636801.7 | D66: -73.668 | E66: -290737803.6 | F66: -73.668 | G66: -315302182.2 | H66: -73.668 | I66: -331678434.6 | J66: -73.668 | K66: -348054687 | L66: -73.668 | M66: -242617046.4 | N66: -73.668 | O66: -429935949 | P66: -73.668 | Q66: -48569315.4
B67: -73.504 | C67: -277171655 | D67: -73.504 | E67: -290257660.8 | F67: -73.504 | G67: -314793921.6 | H67: -73.504 | I67: -331151428.8 | J67: -73.504 | K67: -347508936 | L67: -73.504 | M67: -242193139.2 | N67: -73.504 | O67: -429296472 | P67: -73.504 | Q67: -48450571.2
B68: -73.34 | C68: -276706508.4 | D68: -73.34 | E68: -289777518 | F68: -73.34 | G68: -314285661 | H68: -73.34 | I68: -330624423 | J68: -73.34 | K68: -346963185 | L68: -73.34 | M68: -241769232 | N68: -73.34 | O68: -428656995 | P68: -73.34 | Q68: -48331827
B69: -73.176 | C69: -276241361.8 | D69: -73.176 | E69: -289297375.2 | F69: -73.176 | G69: -313777400.4 | H69: -73.176 | I69: -330097417.2 | J69: -73.176 | K69: -346417434 | L69: -73.176 | M69: -241345324.8 | N69: -73.176 | O69: -428017518 | P69: -73.176 | Q69: -48213082.8
B70: -73.012 | C70: -275776215.1 | D70: -73.012 | E70: -288817232.4 | F70: -73.012 | G70: -313269139.8 | H70: -73.012 | I70: -329570411.4 | J70: -73.012 | K70: -345871683 | L70: -73.012 | M70: -240921417.6 | N70: -73.012 | O70: -427378041 | P70: -73.012 | Q70: -48094338.6
B71: -72.848 | C71: -275311068.5 | D71: -72.848 | E71: -288337089.6 | F71: -72.848 | G71: -312760879.2 | H71: -72.848 | I71: -329043405.6 | J71: -72.848 | K71: -345325932 | L71: -72.848 | M71: -240497510.4 | N71: -72.848 | O71: -426738564 | P71: -72.848 | Q71: -47975594.4
B72: -72.684 | C72: -274845921.8 | D72: -72.684 | E72: -287856946.8 | F72: -72.684 | G72: -312252618.6 | H72: -72.684 | I72: -328516399.8 | J72: -72.684 | K72: -344780181 | L72: -72.684 | M72: -240073603.2 | N72: -72.684 | O72: -426099087 | P72: -72.684 | Q72: -47856850.2
B73: -72.52 | C73: -274380775.2 | D73: -72.52 | E73: -287376804 | F73: -72.52 | G73: -311744358 | H73: -72.52 | I73: -327989394 | J73: -72.52 | K73: -344234430 | L73: -72.52 | M73: -239649696 | N73: -72.52 | O73: -425459610 | P73: -72.52 | Q73: -47738106
B74: -72.356 | C74: -273915628.6 | D74: -72.356 | E74: -286896661.2 | F74: -72.356 | G74: -311236097.4 | H74: -72.356 | I74: -327462388.2 | J74: -72.356 | K74: -343688679 | L74: -72.356 | M74: -239225788.8 | N74: -72.356 | O74: -424820133 | P74: -72.356 | Q74: -47619361.8
B75: -72.192 | C75: -273450481.9 | D75: -72.192 | E75: -286416518.4 | F75: -72.192 | G75: -310727836.8 | H75: -72.192 | I75: -326935382.4 | J75: -72.192 | K75: -343142928 | L75: -72.192 | M75: -238801881.6 | N75: -72.192 | O75: -424180656 | P75: -72.192 | Q75: -47500617.6
B76: -72.028 | C76: -272985335.3 | D76: -72.028 | E76: -285936375.6 | F76: -72.028 | G76: -310219576.2 | H76: -72.028 | I76: -326408376.6 | J76: -72.028 | K76: -342597177 | L76: -72.028 | M76: -238377974.4 | N76: -72.028 | O76: -423541179 | P76: -72.028 | Q76: -47381873.4
B77: -71.864 | C77: -272520188.6 | D77: -71.864 | E77: -285456232.8 | F77: -71.864 | G77: -309711315.6 | H77: -71.864 | I77: -325881370.8 | J77: -71.864 | K77: -342051426 | L77: -71.864 | M77: -237954067.2 | N77: -71.864 | O77: -422901702 | P77: -71.864 | Q77: -47263129.2
B78: -71.7 | C78: -272055042 | D78: -71.7 | E78: -284976090 | F78: -71.7 | G78: -309203055 | H78: -71.7 | I78: -325354365 | J78: -71.7 | K78: -341505675 | L78: -71.7 | M78: -237530160 | N78: -71.7 | O78: -422262225 | P78: -71.7 | Q78: -47144385
B79: -71.536 | C79: -271589895.4 | D79: -71.536 | E79: -284495947.2 | F79: -71.536 | G79: -308694794.4 | H79: -71.536 | I79: -324827359.2 | J79: -71.536 | K79: -340959924 | L79: -71.536 | M79: -237106252.8 | N79: -71.536 | O79: -421622748 | P79: -71.536 | Q79: -47025640.8
B80: -71.372 | C80: -271124748.7 | D80: -71.372 | E80: -284015804.4 | F80: -71.372 | G80: -308186533.8 | H80: -71.372 | I80: -324300353.4 | J80: -71.372 | K80: -340414173 | L80: -71.372 | M80: -236682345.6 | N80: -71.372 | O80: -420983271 | P80: -71.372 | Q80: -46906896.6
B81: -71.208 | C81: -270659602.1 | D81: -71.208 | E81: -283535661.6 | F81: -71.208 | G81: -307678273.2 | H81: -71.208 | I81: -323773347.6 | J81: -71.208 | K81: -339868422 | L81: -71.208 | M81: -236258438.4 | N81: -71.208 | O81: -420343794 | P81: -71.208 | Q81: -46788152.4
B82: -71.044 | C82: -270194455.4 | D82: -71.044 | E82: -283055518.8 | F82: -71.044 | G82: -307170012.6 | H82: -71.044 | I82: -323246341.8 | J82: -71.044 | K82: -339322671 | L82: -71.044 | M82: -235834531.2 | N82: -71.044 | O82: -419704317 | P82: -71.044 | Q82: -46669408.2
B83: -70.88 | C83: -269729308.8 | D83: -70.88 | E83: -282575376 | F83: -70.88 | G83: -306661752 | H83: -70.88 | I83: -322719336 | J83: -70.88 | K83: -338776920 | L83: -70.88 | M83: -235410624 | N83: -70.88 | O83: -419064840 | P83: -70.88 | Q83: -46550664
B84: -70.716 | C84: -269264162.2 | D84: -70.716 | E84: -282095233.2 | F84: -70.716 | G84: -306153491.4 | H84: -70.716 | I84: -322192330.2 | J84: -70.716 | K84: -338231169 | L84: -70.716 | M84: -234986716.8 | N84: -70.716 | O84: -418425363 | P84: -70.716 | Q84: -46431919.8
B85: -70.552 | C85: -268799015.5 | D85: -70.552 | E85: -281615090.4 | F85: -70.552 | G85: -305645230.8 | H85: -70.552 | I85: -321665324.4 | J85: -70.552 | K85: -337685418 | L85: -70.552 | M85: -234562809.6 | N85: -70.552 | O85: -417785886 | P85: -70.552 | Q85: -46313175.6
B86: -70.388 | C86: -268333868.9 | D86: -70.388 | E86: -281134947.6 | F86: -70.388 | G86: -305136970.2 | H86: -70.388 | I86: -321138318.6 | J86: -70.388 | K86: -337139667 | L86: -70.388 | M86: -234138902.4 | N86: -70.388 | O86: -417146409 | P86: -70.388 | Q86: -46194431.4
B87: -70.224 | C87: -267868722.2 | D87: -70.224 | E87: -280654804.8 | F87: -70.224 | G87: -304628709.6 | H87: -70.224 | I87: -320611312.8 | J87: -70.224 | K87: -336593916 | L87: -70.224 | M87: -233714995.2 | N87: -70.224 | O87: -416506932 | P87: -70.224 | Q87: -46075687.2
B88: -70.06 | C88: -267403575.6 | D88: -70.06 | E88: -280174662 | F88: -70.06 | G88: -304120449 | H88: -70.06 | I88: -320084307 | J88: -70.06 | K88: -336048165 | L88: -70.06 | M88: -233291088 | N88: -70.06 | O88: -415867455 | P88: -70.06 | Q88: -45956943
B89: -69.896 | C89: -266938429 | D89: -69.896 | E89: -279694519.2 | F89: -69.896 | G89: -303612188.4 | H89: -69.896 | I89: -319557301.2 | J89: -69.896 | K89: -335502414 | L89: -69.896 | M89: -232867180.8 | N89: -69.896 | O89: -415227978 | P89: -69.896 | Q89: -45838198.8
B90: -69.732 | C90: -266473282.3 | D90: -69.732 | E90: -279214376.4 | F90: -69.732 | G90: -303103927.8 | H90: -69.732 | I90: -319030295.4 | J90: -69.732 | K90: -334956663 | L90: -69.732 | M90: -232443273.6 | N90: -69.732 | O90: -414588501 | P90: -69.732 | Q90: -45719454.6
B91: -69.568 | C91: -266008135.7 | D91: -69.568 | E91: -278734233.6 | F91: -69.568 | G91: -302595667.2 | H91: -69.568 | I91: -318503289.6 | J91: -69.568 | K91: -334410912 | L91: -69.568 | M91: -232019366.4 | N91: -69.568 | O91: -413949024 | P91: -69.568 | Q91: -45600710.4
B92: -69.404 | C92: -265542989 | D92: -69.404 | E92: -278254090.8 | F92: -69.404 | G92: -302087406.6 | H92: -69.404 | I92: -317976283.8 | J92: -69.404 | K92: -333865161 | L92: -69.404 | M92: -231595459.2 | N92: -69.404 | O92: -413309547 | P92: -69.404 | Q92: -45481966.2
B93: -69.24 | C93: -265077842.4 | D93: -69.24 | E93: -277773948 | F93: -69.24 | G93: -301579146 | H93: -69.24 | I93: -317449278 | J93: -69.24 | K93: -333319410 | L93: -69.24 | M93: -231171552 | N93: -69.24 | O93: -412670070 | P93: -69.24 | Q93: -45363222
B94: -69.076 | C94: -264612695.8 | D94: -69.076 | E94: -277293805.2 | F94: -69.076 | G94: -301070885.4 | H94: -69.076 | I94: -316922272.2 | J94: -69.076 | K94: -332773659 | L94: -69.076 | M94: -230747644.8 | N94: -69.076 | O94: -412030593 | P94: -69.076 | Q94: -45244477.8
B95: -68.912 | C95: -264147549.1 | D95: -68.912 | E95: -276813662.4 | F95: -68.912 | G95: -300562624.8 | H95: -68.912 | I95: -316395266.4 | J95: -68.912 | K95: -332227908 | L95: -68.912 | M95: -230323737.6 | N95: -68.912 | O95: -411391116 | P95: -68.912 | Q95: -45125733.6
B96: -68.748 | C96: -263682402.5 | D96: -68.748 | E96: -276333519.6 | F96: -68.748 | G96: -300054364.2 | H96: -68.748 | I96: -315868260.6 | J96: -68.748 | K96: -331682157 | L96: -68.748 | M96: -229899830.4 | N96: -68.748 | O96: -410751639 | P96: -68.748 | Q96: -45006989.4
B97: -68.584 | C97: -263217255.8 | D97: -68.584 | E97: -275853376.8 | F97: -68.584 | G97: -299546103.6 | H97: -68.584 | I97: -315341254.8 | J97: -68.584 | K97: -331136406 | L97: -68.584 | M97: -229475923.2 | N97: -68.584 | O97: -410112162 | P97: -68.584 | Q97: -44888245.2
B98: -68.42 | C98: -262752109.2 | D98: -68.42 | E98: -275373234 | F98: -68.42 | G98: -299037843 | H98: -68.42 | I98: -314814249 | J98: -68.42 | K98: -330590655 | L98: -68.42 | M98: -229052016 | N98: -68.42 | O98: -409472685 | P98: -68.42 | Q98: -44769501
B99: -68.256 | C99: -262286962.6 | D99: -68.256 | E99: -274893091.2 | F99: -68.256 | G99: -298529582.4 | H99: -68.256 | I99: -314287243.2 | J99: -68.256 | K99: -330044904 | L99: -68.256 | M99: -228628108.8 | N99: -68.256 | O99: -408833208 | P99: -68.256 | Q99: -44650756.8
B100: -68.092 | C100: -261821815.9 | D100: -68.092 | E100: -274412948.4 | F100: -68.092 | G100: -298021321.8 | H100: -68.092 | I100: -313760237.4 | J100: -68.092 | K100: -329499153 | L100: -68.092 | M100: -228204201.6 | N100: -68.092 | O100: -408193731 | P100: -68.092 | Q100: -44532012.6
B101: -67.928 | C101: -261356669.3 | D101: -67.928 | E101: -273932805.6 | F101: -67.928 | G101: -297513061.2 | H101: -67.928 | I101: -313233231.6 | J101: -67.928 | K101: -328953402 | L101: -67.928 | M101: -227780294.4 | N101: -67.928 | O101: -407554254 | P101: -67.928 | Q101: -44413268.4
B102: -67.764 | C102: -260891522.6 | D102: -67.764 | E102: -273452662.8 | F102: -67.764 | G102: -297004800.6 | H102: -67.764 | I102: -312706225.8 | J102: -67.764 | K102: -328407651 | L102: -67.764 | M102: -227356387.2 | N102: -67.764 | O102: -406914777 | P102: -67.764 | Q102: -44294524.2
B103: -67.6 | C103: -260426376 | D103: -67.6 | E103: -272972520 | F103: -67.6 | G103: -296496540 | H103: -67.6 | I103: -312179220 | J103: -67.6 | K103: -327861900 | L103: -67.6 | M103: -226932480 | N103: -67.6 | O103: -406275300 | P103: -67.6 | Q103: -44175780
B104: -67.436 | C104: -259961229.4 | D104: -67.436 | E104: -272492377.2 | F104: -67.436 | G104: -295988279.4 | H104: -67.436 | I104: -311652214.2 | J104: -67.436 | K104: -327316149 | L104: -67.436 | M104: -226508572.8 | N104: -67.436 | O104: -405635823 | P104: -67.436 | Q104: -44057035.8
B105: -67.272 | C105: -259496082.7 | D105: -67.272 | E105: -272012234.4 | F105: -67.272 | G105: -295480018.8 | H105: -67.272 | I105: -311125208.4 | J105: -67.272 | K105: -326770398 | L105: -67.272 | M105: -226084665.6 | N105: -67.272 | O105: -404996346 | P105: -67.272 | Q105: -43938291.6
B106: -67.108 | C106: -259030936.1 | D106: -67.108 | E106: -271532091.6 | F106: -67.108 | G106: -294971758.2 | H106: -67.108 | I106: -310598202.6 | J106: -67.108 | K106: -326224647 | L106: -67.108 | M106: -225660758.4 | N106: -67.108 | O106: -404356869 | P106: -67.108 | Q106: -43819547.4
B107: -66.944 | C107: -258565789.4 | D107: -66.944 | E107: -271051948.8 | F107: -66.944 | G107: -294463497.6 | H107: -66.944 | I107: -310071196.8 | J107: -66.944 | K107: -325678896 | L107: -66.944 | M107: -225236851.2 | N107: -66.944 | O107: -403717392 | P107: -66.944 | Q107: -43700803.2
B108: -66.78 | C108: -258100642.8 | D108: -66.78 | E108: -270571806 | F108: -66.78 | G108: -293955237 | H108: -66.78 | I108: -309544191 | J108: -66.78 | K108: -325133145 | L108: -66.78 | M108: -224812944 | N108: -66.78 | O108: -403077915 | P108: -66.78 | Q108: -43582059
B109: -66.616 | C109: -257635496.2 | D109: -66.616 | E109: -270091663.2 | F109: -66.616 | G109: -293446976.4 | H109: -66.616 | I109: -309017185.2 | J109: -66.616 | K109: -324587394 | L109: -66.616 | M109: -224389036.8 | N109: -66.616 | O109: -402438438 | P109: -66.616 | Q109: -43463314.8
B110: -66.452 | C110: -257170349.5 | D110: -66.452 | E110: -269611520.4 | F110: -66.452 | G110: -292938715.8 | H110: -66.452 | I110: -308490179.4 | J110: -66.452 | K110: -324041643 | L110: -66.452 | M110: -223965129.6 | N110: -66.452 | O110: -401798961 | P110: -66.452 | Q110: -43344570.6
B111: -66.288 | C111: -256705202.9 | D111: -66.288 | E111: -269131377.6 | F111: -66.288 | G111: -292430455.2 | H111: -66.288 | I111: -307963173.6 | J111: -66.288 | K111: -323495892 | L111: -66.288 | M111: -223541222.4 | N111: -66.288 | O111: -401159484 | P111: -66.288 | Q111: -43225826.4
B112: -66.124 | C112: -256240056.2 | D112: -66.124 | E112: -268651234.8 | F112: -66.124 | G112: -291922194.6 | H112: -66.124 | I112: -307436167.8 | J112: -66.124 | K112: -322950141 | L112: -66.124 | M112: -223117315.2 | N112: -66.124 | O112: -400520007 | P112: -66.124 | Q112: -43107082.2
B113: -65.96 | C113: -255774909.6 | D113: -65.96 | E113: -268171092 | F113: -65.96 | G113: -291413934 | H113: -65.96 | I113: -306909162 | J113: -65.96 | K113: -322404390 | L113: -65.96 | M113: -222693408 | N113: -65.96 | O113: -399880530 | P113: -65.96 | Q113: -42988338
B114: -65.796 | C114: -255309763 | D114: -65.796 | E114: -267690949.2 | F114: -65.796 | G114: -290905673.4 | H114: -65.796 | I114: -306382156.2 | J114: -65.796 | K114: -321858639 | L114: -65.796 | M114: -222269500.8 | N114: -65.796 | O114: -399241053 | P114: -65.796 | Q114: -42869593.8
B115: -65.632 | C115: -254844616.3 | D115: -65.632 | E115: -267210806.4 | F115: -65.632 | G115: -290397412.8 | H115: -65.632 | I115: -305855150.4 | J115: -65.632 | K115: -321312888 | L115: -65.632 | M115: -221845593.6 | N115: -65.632 | O115: -398601576 | P115: -65.632 | Q115: -42750849.6
B116: -65.468 | C116: -254379469.7 | D116: -65.468 | E116: -266730663.6 | F116: -65.468 | G116: -289889152.2 | H116: -65.468 | I116: -305328144.6 | J116: -65.468 | K116: -320767137 | L116: -65.468 | M116: -221421686.4 | N116: -65.468 | O116: -397962099 | P116: -65.468 | Q116: -42632105.4
B117: -65.304 | C117: -253914323 | D117: -65.304 | E117: -266250520.8 | F117: -65.304 | G117: -289380891.6 | H117: -65.304 | I117: -304801138.8 | J117: -65.304 | K117: -320221386 | L117: -65.304 | M117: -220997779.2 | N117: -65.304 | O117: -397322622 | P117: -65.304 | Q117: -42513361.2
B118: -65.14 | C118: -253449176.4 | D118: -65.14 | E118: -265770378 | F118: -65.14 | G118: -288872631 | H118: -65.14 | I118: -304274133 | J118: -65.14 | K118: -319675635 | L118: -65.14 | M118: -220573872 | N118: -65.14 | O118: -396683145 | P118: -65.14 | Q118: -42394617
B119: -64.976 | C119: -252984029.8 | D119: -64.976 | E119: -265290235.2 | F119: -64.976 | G119: -288364370.4 | H119: -64.976 | I119: -303747127.2 | J119: -64.976 | K119: -319129884 | L119: -64.976 | M119: -220149964.8 | N119: -64.976 | O119: -396043668 | P119: -64.976 | Q119: -42275872.8
B120: -64.812 | C120: -252518883.1 | D120: -64.812 | E120: -264810092.4 | F120: -64.812 | G120: -287856109.8 | H120: -64.812 | I120: -303220121.4 | J120: -64.812 | K120: -318584133 | L120: -64.812 | M120: -219726057.6 | N120: -64.812 | O120: -395404191 | P120: -64.812 | Q120: -42157128.6
B121: -64.648 | C121: -252053736.5 | D121: -64.648 | E121: -264329949.6 | F121: -64.648 | G121: -287347849.2 | H121: -64.648 | I121: -302693115.6 | J121: -64.648 | K121: -318038382 | L121: -64.648 | M121: -219302150.4 | N121: -64.648 | O121: -394764714 | P121: -64.648 | Q121: -42038384.4
B122: -64.484 | C122: -251588589.8 | D122: -64.484 | E122: -263849806.8 | F122: -64.484 | G122: -286839588.6 | H122: -64.484 | I122: -302166109.8 | J122: -64.484 | K122: -317492631 | L122: -64.484 | M122: -218878243.2 | N122: -64.484 | O122: -394125237 | P122: -64.484 | Q122: -41919640.2
B123: -64.32 | C123: -251123443.2 | D123: -64.32 | E123: -263369664 | F123: -64.32 | G123: -286331328 | H123: -64.32 | I123: -301639104 | J123: -64.32 | K123: -316946880 | L123: -64.32 | M123: -218454336 | N123: -64.32 | O123: -393485760 | P123: -64.32 | Q123: -41800896
B124: -64.156 | C124: -250658296.6 | D124: -64.156 | E124: -262889521.2 | F124: -64.156 | G124: -285823067.4 | H124: -64.156 | I124: -301112098.2 | J124: -64.156 | K124: -316401129 | L124: -64.156 | M124: -218030428.8 | N124: -64.156 | O124: -392846283 | P124: -64.156 | Q124: -41682151.8
B125: -63.992 | C125: -250193149.9 | D125: -63.992 | E125: -262409378.4 | F125: -63.992 | G125: -285314806.8 | H125: -63.992 | I125: -300585092.4 | J125: -63.992 | K125: -315855378 | L125: -63.992 | M125: -217606521.6 | N125: -63.992 | O125: -392206806 | P125: -63.992 | Q125: -41563407.6
B126: -63.828 | C126: -249728003.3 | D126: -63.828 | E126: -261929235.6 | F126: -63.828 | G126: -284806546.2 | H126: -63.828 | I126: -300058086.6 | J126: -63.828 | K126: -315309627 | L126: -63.828 | M126: -217182614.4 | N126: -63.828 | O126: -391567329 | P126: -63.828 | Q126: -41444663.4
B127: -63.664 | C127: -249262856.6 | D127: -63.664 | E127: -261449092.8 | F127: -63.664 | G127: -284298285.6 | H127: -63.664 | I127: -299531080.8 | J127: -63.664 | K127: -314763876 | L127: -63.664 | M127: -216758707.2 | N127: -63.664 | O127: -390927852 | P127: -63.664 | Q127: -41325919.2
B128: -63.5 | C128: -248797710 | D128: -63.5 | E128: -260968950 | F128: -63.5 | G128: -283790025 | H128: -63.5 | I128: -299004075 | J128: -63.5 | K128: -314218125 | L128: -63.5 | M128: -216334800 | N128: -63.5 | O128: -390288375 | P128: -63.5 | Q128: -41207175
B129: -63.336 | C129: -248332563.4 | D129: -63.336 | E129: -260488807.2 | F129: -63.336 | G129: -283281764.4 | H129: -63.336 | I129: -298477069.2 | J129: -63.336 | K129: -313672374 | L129: -63.336 | M129: -215910892.8 | N129: -63.336 | O129: -389648898 | P129: -63.336 | Q129: -41088430.8
B130: -63.172 | C130: -247867416.7 | D130: -63.172 | E130: -260008664.4 | F130: -63.172 | G130: -282773503.8 | H130: -63.172 | I130: -297950063.4 | J130: -63.172 | K130: -313126623 | L130: -63.172 | M130: -215486985.6 | N130: -63.172 | O130: -389009421 | P130: -63.172 | Q130: -40969686.6
B131: -63.008 | C131: -247402270.1 | D131: -63.008 | E131: -259528521.6 | F131: -63.008 | G131: -282265243.2 | H131: -63.008 | I131: -297423057.6 | J131: -63.008 | K131: -312580872 | L131: -63.008 | M131: -215063078.4 | N131: -63.008 | O131: -388369944 | P131: -63.008 | Q131: -40850942.4
B132: -62.844 | C132: -246937123.4 | D132: -62.844 | E132: -259048378.8 | F132: -62.844 | G132: -281756982.6 | H132: -62.844 | I132: -296896051.8 | J132: -62.844 | K132: -312035121 | L132: -62.844 | M132: -214639171.2 | N132: -62.844 | O132: -387730467 | P132: -62.844 | Q132: -40732198.2
B133: -62.68 | C133: -246471976.8 | D133: -62.68 | E133: -258568236 | F133: -62.68 | G133: -281248722 | H133: -62.68 | I133: -296369046 | J133: -62.68 | K133: -311489370 | L133: -62.68 | M133: -214215264 | N133: -62.68 | O133: -387090990 | P133: -62.68 | Q133: -40613454
B134: -62.516 | C134: -246006830.2 | D134: -62.516 | E134: -258088093.2 | F134: -62.516 | G134: -280740461.4 | H134: -62.516 | I134: -295842040.2 | J134: -62.516 | K134: -310943619 | L134: -62.516 | M134: -213791356.8 | N134: -62.516 | O134: -386451513 | P134: -62.516 | Q134: -40494709.8
B135: -62.352 | C135: -245541683.5 | D135: -62.352 | E135: -257607950.4 | F135: -62.352 | G135: -280232200.8 | H135: -62.352 | I135: -295315034.4 | J135: -62.352 | K135: -310397868 | L135: -62.352 | M135: -213367449.6 | N135: -62.352 | O135: -385812036 | P135: -62.352 | Q135: -40375965.6
B136: -62.188 | C136: -245076536.9 | D136: -62.188 | E136: -257127807.6 | F136: -62.188 | G136: -279723940.2 | H136: -62.188 | I136: -294788028.6 | J136: -62.188 | K136: -309852117 | L136: -62.188 | M136: -212943542.4 | N136: -62.188 | O136: -385172559 | P136: -62.188 | Q136: -40257221.4
B137: -62.024 | C137: -244611390.2 | D137: -62.024 | E137: -256647664.8 | F137: -62.024 | G137: -279215679.6 | H137: -62.024 | I137: -294261022.8 | J137: -62.024 | K137: -309306366 | L137: -62.024 | M137: -212519635.2 | N137: -62.024 | O137: -384533082 | P137: -62.024 | Q137: -40138477.2
B138: -61.86 | C138: -244146243.6 | D138: -61.86 | E138: -256167522 | F138: -61.86 | G138: -278707419 | H138: -61.86 | I138: -293734017 | J138: -61.86 | K138: -308760615 | L138: -61.86 | M138: -212095728 | N138: -61.86 | O138: -383893605 | P138: -61.86 | Q138: -40019733
B139: -61.696 | C139: -243681097 | D139: -61.696 | E139: -255687379.2 | F139: -61.696 | G139: -278199158.4 | H139: -61.696 | I139: -293207011.2 | J139: -61.696 | K139: -308214864 | L139: -61.696 | M139: -211671820.8 | N139: -61.696 | O139: -383254128 | P139: -61.696 | Q139: -39900988.8
B140: -61.532 | C140: -243215950.3 | D140: -61.532 | E140: -255207236.4 | F140: -61.532 | G140: -277690897.8 | H140: -61.532 | I140: -292680005.4 | J140: -61.532 | K140: -307669113 | L140: -61.532 | M140: -211247913.6 | N140: -61.532 | O140: -382614651 | P140: -61.532 | Q140: -39782244.6
B141: -61.368 | C141: -242750803.7 | D141: -61.368 | E141: -254727093.6 | F141: -61.368 | G141: -277182637.2 | H141: -61.368 | I141: -292152999.6 | J141: -61.368 | K141: -307123362 | L141: -61.368 | M141: -210824006.4 | N141: -61.368 | O141: -381975174 | P141: -61.368 | Q141: -39663500.4
B142: -61.204 | C142: -242285657 | D142: -61.204 | E142: -254246950.8 | F142: -61.204 | G142: -276674376.6 | H142: -61.204 | I142: -291625993.8 | J142: -61.204 | K142: -306577611 | L142: -61.204 | M142: -210400099.2 | N142: -61.204 | O142: -381335697 | P142: -61.204 | Q142: -39544756.2
B143: -61.04 | C143: -241820510.4 | D143: -61.04 | E143: -253766808 | F143: -61.04 | G143: -276166116 | H143: -61.04 | I143: -291098988 | J143: -61.04 | K143: -306031860 | L143: -61.04 | M143: -209976192 | N143: -61.04 | O143: -380696220 | P143: -61.04 | Q143: -39426012
B144: -60.876 | C144: -241355363.8 | D144: -60.876 | E144: -253286665.2 | F144: -60.876 | G144: -275657855.4 | H144: -60.876 | I144: -290571982.2 | J144: -60.876 | K144: -305486109 | L144: -60.876 | M144: -209552284.8 | N144: -60.876 | O144: -380056743 | P144: -60.876 | Q144: -39307267.8
B145: -60.712 | C145: -240890217.1 | D145: -60.712 | E145: -252806522.4 | F145: -60.712 | G145: -275149594.8 | H145: -60.712 | I145: -290044976.4 | J145: -60.712 | K145: -304940358 | L145: -60.712 | M145: -209128377.6 | N145: -60.712 | O145: -379417266 | P145: -60.712 | Q145: -39188523.6
B146: -60.548 | C146: -240425070.5 | D146: -60.548 | E146: -252326379.6 | F146: -60.548 | G146: -274641334.2 | H146: -60.548 | I146: -289517970.6 | J146: -60.548 | K146: -304394607 | L146: -60.548 | M146: -208704470.4 | N146: -60.548 | O146: -378777789 | P146: -60.548 | Q146: -39069779.4
B147: -60.384 | C147: -239959923.8 | D147: -60.384 | E147: -251846236.8 | F147: -60.384 | G147: -274133073.6 | H147: -60.384 | I147: -288990964.8 | J147: -60.384 | K147: -303848856 | L147: -60.384 | M147: -208280563.2 | N147: -60.384 | O147: -378138312 | P147: -60.384 | Q147: -38951035.2
B148: -60.22 | C148: -239494777.2 | D148: -60.22 | E148: -251366094 | F148: -60.22 | G148: -273624813 | H148: -60.22 | I148: -288463959 | J148: -60.22 | K148: -303303105 | L148: -60.22 | M148: -207856656 | N148: -60.22 | O148: -377498835 | P148: -60.22 | Q148: -38832291
B149: -60.056 | C149: -239029630.6 | D149: -60.056 | E149: -250885951.2 | F149: -60.056 | G149: -273116552.4 | H149: -60.056 | I149: -287936953.2 | J149: -60.056 | K149: -302757354 | L149: -60.056 | M149: -207432748.8 | N149: -60.056 | O149: -376859358 | P149: -60.056 | Q149: -38713546.8
B150: -59.892 | C150: -238564483.9 | D150: -59.892 | E150: -250405808.4 | F150: -59.892 | G150: -272608291.8 | H150: -59.892 | I150: -287409947.4 | J150: -59.892 | K150: -302211603 | L150: -59.892 | M150: -207008841.6 | N150: -59.892 | O150: -376219881 | P150: -59.892 | Q150: -38594802.6
B151: -59.728 | C151: -238099337.3 | D151: -59.728 | E151: -249925665.6 | F151: -59.728 | G151: -272100031.2 | H151: -59.728 | I151: -286882941.6 | J151: -59.728 | K151: -301665852 | L151: -59.728 | M151: -206584934.4 | N151: -59.728 | O151: -375580404 | P151: -59.728 | Q151: -38476058.4
B152: -59.564 | C152: -237634190.6 | D152: -59.564 | E152: -249445522.8 | F152: -59.564 | G152: -271591770.6 | H152: -59.564 | I152: -286355935.8 | J152: -59.564 | K152: -301120101 | L152: -59.564 | M152: -206161027.2 | N152: -59.564 | O152: -374940927 | P152: -59.564 | Q152: -38357314.2
B153: -59.4 | C153: -237169044 | D153: -59.4 | E153: -248965380 | F153: -59.4 | G153: -271083510 | H153: -59.4 | I153: -285828930 | J153: -59.4 | K153: -300574350 | L153: -59.4 | M153: -205737120 | N153: -59.4 | O153: -374301450 | P153: -59.4 | Q153: -38238570
B154: -59.236 | C154: -236703897.4 | D154: -59.236 | E154: -248485237.2 | F154: -59.236 | G154: -270575249.4 | H154: -59.236 | I154: -285301924.2 | J154: -59.236 | K154: -300028599 | L154: -59.236 | M154: -205313212.8 | N154: -59.236 | O154: -373661973 | P154: -59.236 | Q154: -38119825.8
B155: -59.072 | C155: -236238750.7 | D155: -59.072 | E155: -248005094.4 | F155: -59.072 | G155: -270066988.8 | H155: -59.072 | I155: -284774918.4 | J155: -59.072 | K155: -299482848 | L155: -59.072 | M155: -204889305.6 | N155: -59.072 | O155: -373022496 | P155: -59.072 | Q155: -38001081.6
B156: -58.908 | C156: -235773604.1 | D156: -58.908 | E156: -247524951.6 | F156: -58.908 | G156: -269558728.2 | H156: -58.908 | I156: -284247912.6 | J156: -58.908 | K156: -298937097 | L156: -58.908 | M156: -204465398.4 | N156: -58.908 | O156: -372383019 | P156: -58.908 | Q156: -37882337.4
B157: -58.744 | C157: -235308457.4 | D157: -58.744 | E157: -247044808.8 | F157: -58.744 | G157: -269050467.6 | H157: -58.744 | I157: -283720906.8 | J157: -58.744 | K157: -298391346 | L157: -58.744 | M157: -204041491.2 | N157: -58.744 | O157: -371743542 | P157: -58.744 | Q157: -37763593.2
B158: -58.58 | C158: -234843310.8 | D158: -58.58 | E158: -246564666 | F158: -58.58 | G158: -268542207 | H158: -58.58 | I158: -283193901 | J158: -58.58 | K158: -297845595 | L158: -58.58 | M158: -203617584 | N158: -58.58 | O158: -371104065 | P158: -58.58 | Q158: -37644849
B159: -58.416 | C159: -234378164.2 | D159: -58.416 | E159: -246084523.2 | F159: -58.416 | G159: -268033946.4 | H159: -58.416 | I159: -282666895.2 | J159: -58.416 | K159: -297299844 | L159: -58.416 | M159: -203193676.8 | N159: -58.416 | O159: -370464588 | P159: -58.416 | Q159: -37526104.8
B160: -58.252 | C160: -233913017.5 | D160: -58.252 | E160: -245604380.4 | F160: -58.252 | G160: -267525685.8 | H160: -58.252 | I160: -282139889.4 | J160: -58.252 | K160: -296754093 | L160: -58.252 | M160: -202769769.6 | N160: -58.252 | O160: -369825111 | P160: -58.252 | Q160: -37407360.6
B161: -58.088 | C161: -233447870.9 | D161: -58.088 | E161: -245124237.6 | F161: -58.088 | G161: -267017425.2 | H161: -58.088 | I161: -281612883.6 | J161: -58.088 | K161: -296208342 | L161: -58.088 | M161: -202345862.4 | N161: -58.088 | O161: -369185634 | P161: -58.088 | Q161: -37288616.4
B162: -57.924 | C162: -232982724.2 | D162: -57.924 | E162: -244644094.8 | F162: -57.924 | G162: -266509164.6 | H162: -57.924 | I162: -281085877.8 | J162: -57.924 | K162: -295662591 | L162: -57.924 | M162: -201921955.2 | N162: -57.924 | O162: -368546157 | P162: -57.924 | Q162: -37169872.2
B163: -57.76 | C163: -232517577.6 | D163: -57.76 | E163: -244163952 | F163: -57.76 | G163: -266000904 | H163: -57.76 | I163: -280558872 | J163: -57.76 | K163: -295116840 | L163: -57.76 | M163: -201498048 | N163: -57.76 | O163: -367906680 | P163: -57.76 | Q163: -37051128
B164: -57.596 | C164: -232052431 | D164: -57.596 | E164: -243683809.2 | F164: -57.596 | G164: -265492643.4 | H164: -57.596 | I164: -280031866.2 | J164: -57.596 | K164: -294571089 | L164: -57.596 | M164: -201074140.8 | N164: -57.596 | O164: -367267203 | P164: -57.596 | Q164: -36932383.8
B165: -57.432 | C165: -231587284.3 | D165: -57.432 | E165: -243203666.4 | F165: -57.432 | G165: -264984382.8 | H165: -57.432 | I165: -279504860.4 | J165: -57.432 | K165: -294025338 | L165: -57.432 | M165: -200650233.6 | N165: -57.432 | O165: -366627726 | P165: -57.432 | Q165: -36813639.6
B166: -57.268 | C166: -231122137.7 | D166: -57.268 | E166: -242723523.6 | F166: -57.268 | G166: -264476122.2 | H166: -57.268 | I166: -278977854.6 | J166: -57.268 | K166: -293479587 | L166: -57.268 | M166: -200226326.4 | N166: -57.268 | O166: -365988249 | P166: -57.268 | Q166: -36694895.4
B167: -57.104 | C167: -230656991 | D167: -57.104 | E167: -242243380.8 | F167: -57.104 | G167: -263967861.6 | H167: -57.104 | I167: -278450848.8 | J167: -57.104 | K167: -292933836 | L167: -57.104 | M167: -199802419.2 | N167: -57.104 | O167: -365348772 | P167: -57.104 | Q167: -36576151.2
B168: -56.94 | C168: -230191844.4 | D168: -56.94 | E168: -241763238 | F168: -56.94 | G168: -263459601 | H168: -56.94 | I168: -277923843 | J168: -56.94 | K168: -292388085 | L168: -56.94 | M168: -199378512 | N168: -56.94 | O168: -364709295 | P168: -56.94 | Q168: -36457407
B169: -56.776 | C169: -229726697.8 | D169: -56.776 | E169: -241283095.2 | F169: -56.776 | G169: -262951340.4 | H169: -56.776 | I169: -277396837.2 | J169: -56.776 | K169: -291842334 | L169: -56.776 | M169: -198954604.8 | N169: -56.776 | O169: -364069818 | P169: -56.776 | Q169: -36338662.8
B170: -56.612 | C170: -229261551.1 | D170: -56.612 | E170: -240802952.4 | F170: -56.612 | G170: -262443079.8 | H170: -56.612 | I170: -276869831.4 | J170: -56.612 | K170: -291296583 | L170: -56.612 | M170: -198530697.6 | N170: -56.612 | O170: -363430341 | P170: -56.612 | Q170: -36219918.6
B171: -56.448 | C171: -228796404.5 | D171: -56.448 | E171: -240322809.6 | F171: -56.448 | G171: -261934819.2 | H171: -56.448 | I171: -276342825.6 | J171: -56.448 | K171: -290750832 | L171: -56.448 | M171: -198106790.4 | N171: -56.448 | O171: -362790864 | P171: -56.448 | Q171: -36101174.4
B172: -56.284 | C172: -228331257.8 | D172: -56.284 | E172: -239842666.8 | F172: -56.284 | G172: -261426558.6 | H172: -56.284 | I172: -275815819.8 | J172: -56.284 | K172: -290205081 | L172: -56.284 | M172: -197682883.2 | N172: -56.284 | O172: -362151387 | P172: -56.284 | Q172: -35982430.2
B173: -56.12 | C173: -227866111.2 | D173: -56.12 | E173: -239362524 | F173: -56.12 | G173: -260918298 | H173: -56.12 | I173: -275288814 | J173: -56.12 | K173: -289659330 | L173: -56.12 | M173: -197258976 | N173: -56.12 | O173: -361511910 | P173: -56.12 | Q173: -35863686
B174: -55.956 | C174: -227400964.6 | D174: -55.956 | E174: -238882381.2 | F174: -55.956 | G174: -260410037.4 | H174: -55.956 | I174: -274761808.2 | J174: -55.956 | K174: -289113579 | L174: -55.956 | M174: -196835068.8 | N174: -55.956 | O174: -360872433 | P174: -55.956 | Q174: -35744941.8
B175: -55.792 | C175: -226935817.9 | D175: -55.792 | E175: -238402238.4 | F175: -55.792 | G175: -259901776.8 | H175: -55.792 | I175: -274234802.4 | J175: -55.792 | K175: -288567828 | L175: -55.792 | M175: -196411161.6 | N175: -55.792 | O175: -360232956 | P175: -55.792 | Q175: -35626197.6
B176: -55.628 | C176: -226470671.3 | D176: -55.628 | E176: -237922095.6 | F176: -55.628 | G176: -259393516.2 | H176: -55.628 | I176: -273707796.6 | J176: -55.628 | K176: -288022077 | L176: -55.628 | M176: -195987254.4 | N176: -55.628 | O176: -359593479 | P176: -55.628 | Q176: -35507453.4
B177: -55.464 | C177: -226005524.6 | D177: -55.464 | E177: -237441952.8 | F177: -55.464 | G177: -258885255.6 | H177: -55.464 | I177: -273180790.8 | J177: -55.464 | K177: -287476326 | L177: -55.464 | M177: -195563347.2 | N177: -55.464 | O177: -358954002 | P177: -55.464 | Q177: -35388709.2
B178: -55.3 | C178: -225540378 | D178: -55.3 | E178: -236961810 | F178: -55.3 | G178: -258376995 | H178: -55.3 | I178: -272653785 | J178: -55.3 | K178: -286930575 | L178: -55.3 | M178: -195139440 | N178: -55.3 | O178: -358314525 | P178: -55.3 | Q178: -35269965
B179: -55.136 | C179: -225075231.4 | D179: -55.136 | E179: -236481667.2 | F179: -55.136 | G179: -257868734.4 | H179: -55.136 | I179: -272126779.2 | J179: -55.136 | K179: -286384824 | L179: -55.136 | M179: -194715532.8 | N179: -55.136 | O179: -357675048 | P179: -55.136 | Q179: -35151220.8
B180: -54.972 | C180: -224610084.7 | D180: -54.972 | E180: -236001524.4 | F180: -54.972 | G180: -257360473.8 | H180: -54.972 | I180: -271599773.4 | J180: -54.972 | K180: -285839073 | L180: -54.972 | M180: -194291625.6 | N180: -54.972 | O180: -357035571 | P180: -54.972 | Q180: -35032476.6
B181: -54.808 | C181: -224144938.1 | D181: -54.808 | E181: -235521381.6 | F181: -54.808 | G181: -256852213.2 | H181: -54.808 | I181: -271072767.6 | J181: -54.808 | K181: -285293322 | L181: -54.808 | M181: -193867718.4 | N181: -54.808 | O181: -356396094 | P181: -54.808 | Q181: -34913732.4
B182: -54.644 | C182: -223679791.4 | D182: -54.644 | E182: -235041238.8 | F182: -54.644 | G182: -256343952.6 | H182: -54.644 | I182: -270545761.8 | J182: -54.644 | K182: -284747571 | L182: -54.644 | M182: -193443811.2 | N182: -54.644 | O182: -355756617 | P182: -54.644 | Q182: -34794988.2
B183: -54.48 | C183: -223214644.8 | D183: -54.48 | E183: -234561096 | F183: -54.48 | G183: -255835692 | H183: -54.48 | I183: -270018756 | J183: -54.48 | K183: -284201820 | L183: -54.48 | M183: -193019904 | N183: -54.48 | O183: -355117140 | P183: -54.48 | Q183: -34676244
B184: -54.316 | C184: -222749498.2 | D184: -54.316 | E184: -234080953.2 | F184: -54.316 | G184: -255327431.4 | H184: -54.316 | I184: -269491750.2 | J184: -54.316 | K184: -283656069 | L184: -54.316 | M184: -192595996.8 | N184: -54.316 | O184: -354477663 | P184: -54.316 | Q184: -34557499.8
B185: -54.152 | C185: -222284351.5 | D185: -54.152 | E185: -233600810.4 | F185: -54.152 | G185: -254819170.8 | H185: -54.152 | I185: -268964744.4 | J185: -54.152 | K185: -283110318 | L185: -54.152 | M185: -192172089.6 | N185: -54.152 | O185: -353838186 | P185: -54.152 | Q185: -34438755.6
B186: -53.988 | C186: -221819204.9 | D186: -53.988 | E186: -233120667.6 | F186: -53.988 | G186: -254310910.2 | H186: -53.988 | I186: -268437738.6 | J186: -53.988 | K186: -282564567 | L186: -53.988 | M186: -191748182.4 | N186: -53.988 | O186: -353198709 | P186: -53.988 | Q186: -34320011.4
B187: -53.824 | C187: -221354058.2 | D187: -53.824 | E187: -232640524.8 | F187: -53.824 | G187: -253802649.6 | H187: -53.824 | I187: -267910732.8 | J187: -53.824 | K187: -282018816 | L187: -53.824 | M187: -191324275.2 | N187: -53.824 | O187: -352559232 | P187: -53.824 | Q187: -34201267.2
B188: -53.66 | C188: -220888911.6 | D188: -53.66 | E188: -232160382 | F188: -53.66 | G188: -253294389 | H188: -53.66 | I188: -267383727 | J188: -53.66 | K188: -281473065 | L188: -53.66 | M188: -190900368 | N188: -53.66 | O188: -351919755 | P188: -53.66 | Q188: -34082523
B189: -53.496 | C189: -220423765 | D189: -53.496 | E189: -231680239.2 | F189: -53.496 | G189: -252786128.4 | H189: -53.496 | I189: -266856721.2 | J189: -53.496 | K189: -280927314 | L189: -53.496 | M189: -190476460.8 | N189: -53.496 | O189: -351280278 | P189: -53.496 | Q189: -33963778.8
B190: -53.332 | C190: -219958618.3 | D190: -53.332 | E190: -231200096.4 | F190: -53.332 | G190: -252277867.8 | H190: -53.332 | I190: -266329715.4 | J190: -53.332 | K190: -280381563 | L190: -53.332 | M190: -190052553.6 | N190: -53.332 | O190: -350640801 | P190: -53.332 | Q190: -33845034.6
B191: -53.168 | C191: -219493471.7 | D191: -53.168 | E191: -230719953.6 | F191: -53.168 | G191: -251769607.2 | H191: -53.168 | I191: -265802709.6 | J191: -53.168 | K191: -279835812 | L191: -53.168 | M191: -189628646.4 | N191: -53.168 | O191: -350001324 | P191: -53.168 | Q191: -33726290.4
B192: -53.004 | C192: -219028325 | D192: -53.004 | E192: -230239810.8 | F192: -53.004 | G192: -251261346.6 | H192: -53.004 | I192: -265275703.8 | J192: -53.004 | K192: -279290061 | L192: -53.004 | M192: -189204739.2 | N192: -53.004 | O192: -349361847 | P192: -53.004 | Q192: -33607546.2
B193: -52.84 | C193: -218563178.4 | D193: -52.84 | E193: -229759668 | F193: -52.84 | G193: -250753086 | H193: -52.84 | I193: -264748698 | J193: -52.84 | K193: -278744310 | L193: -52.84 | M193: -188780832 | N193: -52.84 | O193: -348722370 | P193: -52.84 | Q193: -33488802
B194: -52.676 | C194: -218098031.8 | D194: -52.676 | E194: -229279525.2 | F194: -52.676 | G194: -250244825.4 | H194: -52.676 | I194: -264221692.2 | J194: -52.676 | K194: -278198559 | L194: -52.676 | M194: -188356924.8 | N194: -52.676 | O194: -348082893 | P194: -52.676 | Q194: -33370057.8
B195: -52.512 | C195: -217632885.1 | D195: -52.512 | E195: -228799382.4 | F195: -52.512 | G195: -249736564.8 | H195: -52.512 | I195: -263694686.4 | J195: -52.512 | K195: -277652808 | L195: -52.512 | M195: -187933017.6 | N195: -52.512 | O195: -347443416 | P195: -52.512 | Q195: -33251313.6
B196: -52.348 | C196: -217167738.5 | D196: -52.348 | E196: -228319239.6 | F196: -52.348 | G196: -249228304.2 | H196: -52.348 | I196: -263167680.6 | J196: -52.348 | K196: -277107057 | L196: -52.348 | M196: -187509110.4 | N196: -52.348 | O196: -346803939 | P196: -52.348 | Q196: -33132569.4
B197: -52.184 | C197: -216702591.8 | D197: -52.184 | E197: -227839096.8 | F197: -52.184 | G197: -248720043.6 | H197: -52.184 | I197: -262640674.8 | J197: -52.184 | K197: -276561306 | L197: -52.184 | M197: -187085203.2 | N197: -52.184 | O197: -346164462 | P197: -52.184 | Q197: -33013825.2
B198: -52.02 | C198: -216237445.2 | D198: -52.02 | E198: -227358954 | F198: -52.02 | G198: -248211783 | H198: -52.02 | I198: -262113669 | J198: -52.02 | K198: -276015555 | L198: -52.02 | M198: -186661296 | N198: -52.02 | O198: -345524985 | P198: -52.02 | Q198: -32895081
B199: -51.856 | C199: -215772298.6 | D199: -51.856 | E199: -226878811.2 | F199: -51.856 | G199: -247703522.4 | H199: -51.856 | I199: -261586663.2 | J199: -51.856 | K199: -275469804 | L199: -51.856 | M199: -186237388.8 | N199: -51.856 | O199: -344885508 | P199: -51.856 | Q199: -32776336.8
B200: -51.692 | C200: -215307151.9 | D200: -51.692 | E200: -226398668.4 | F200: -51.692 | G200: -247195261.8 | H200: -51.692 | I200: -261059657.4 | J200: -51.692 | K200: -274924053 | L200: -51.692 | M200: -185813481.6 | N200: -51.692 | O200: -344246031 | P200: -51.692 | Q200: -32657592.6
B201: -51.528 | C201: -214842005.3 | D201: -51.528 | E201: -225918525.6 | F201: -51.528 | G201: -246687001.2 | H201: -51.528 | I201: -260532651.6 | J201: -51.528 | K201: -274378302 | L201: -51.528 | M201: -185389574.4 | N201: -51.528 | O201: -343606554 | P201: -51.528 | Q201: -32538848.4
... 802 more rows
